Workbook

Sheet Setup
A1: Indtastet data herunder indsættes automatisk i
A2: diverse overskrifter på andre ark ;o)
B4: Indtast
A5: Årstal | B5: 2021
A6: Landsdelsnavn | B6: DGI Sønderjylland

Sheet Forside
A5: RESULTATLISTE
A6: ="SKOLE DM I SKYDNING " &Setup!B5 -> SKOLE DM I SKYDNING 2021
A7: LANDSDELSFINALE
A8: =Setup!B6 -> DGI Sønderjylland
A19: Se også:
A20: www.dgi.dk/skoledmskydning
A21: www.skoleidraet.dk

Sheet Forsidex (hidden)
A1: Under udvikling... ;o)

Sheet Info
B6: Velkommen til
B7: ="Skole DM i Skydning " &Setup!B5 -> Skole DM i Skydning 2021
B8: dgi.dk/skoledmskydning
B9: skoleidraet.dk
B11: Kom godt hjem!

Sheet Indtast resultat
A1: Skole DM i Skydning | D1: Startnr. | E1: 135001
A2: ="Skole/hold " & (ROW()-2)/6+1 -> Skole/hold 1 | B2: Navn | C2: Point | D2: x | E2: Skivenr
A3: Svenstrup Friskole 5.-1 | B3: Luca Schmidt | C3: 191 | D3: 4 | E3: =IF(E1<>"",E1,"") -> 135001
A4: Svenstrup Skytteforening | B4: Albert Jørgensen | C4: 186 | D4: 1 | E4: =IF(E3<>"",E3+10,"") -> 135011
A5: =Setup!B6 -> DGI Sønderjylland | B5: Jacob Alberts | C5: 186 | D5: 0 | E5: =IF(E4<>"",E4+10,"") -> 135021
A6: Jonna Hansen | B6: Frederikke Clausen | C6: 180 | D6: 2 | E6: =IF(E5<>"",E5+10,"") -> 135031
A7: jonna.sjellerup@bbsyd.dk | B7: Sum | C7: =SUM(C3:C6) -> 743 | D7: =SUM(D3:D6) -> 7
A8: ="Skole/hold " & (ROW()-2)/6+1 -> Skole/hold 2 | B8: Navn | C8: Point | D8: x | E8: Skivenr
A9: Broager Skole 5C-1 | B9: Ida | C9: 180 | D9: 0 | E9: =IF(E6<>"",E6+10,"") -> 135041
A10: Broagerlands Skytteforening | B10: Mads | C10: 173 | D10: 1 | E10: =IF(E9<>"",E9+10,"") -> 135051
A11: =$A$5 -> DGI Sønderjylland | B11: Freja | C11: 189 | D11: 2 | E11: =IF(E10<>"",E10+10,"") -> 135061
A12: Lykke Hattesen | B12: William | C12: 177 | D12: 0 | E12: =IF(E11<>"",E11+10,"") -> 135071
A13: jyttehattesen@gmail.com | B13: Sum | C13: =SUM(C9:C12) -> 719 | D13: =SUM(D9:D12) -> 3
A14: ="Skole/hold " & (ROW()-2)/6+1 -> Skole/hold 3 | B14: Navn | C14: Point | D14: x | E14: Skivenr
A15: Nordals Skolen 5B-1 | B15: Isabella Juhler | C15: 0 | D15: 0 | E15: =IF(E12<>"",E12+10,"") -> 135081
A16: Nordals Skyttekreds | B16: Mikkel Kjær | C16: 0 | D16: 0 | E16: =IF(E15<>"",E15+10,"") -> 135091
A17: =$A$5 -> DGI Sønderjylland | B17: Simon Eriksen | C17: 0 | D17: 0 | E17: =IF(E16<>"",E16+10,"") -> 135101
A18: Marie Sørensen | B18: Isabella Kunstmann | C18: 0 | D18: 0 | E18: =IF(E17<>"",E17+10,"") -> 135111
A19: mariekort@mail.dk | B19: Sum | C19: =SUM(C15:C18) -> 0 | D19: =SUM(D15:D18) -> 0
A20: ="Skole/hold " & (ROW()-2)/6+1 -> Skole/hold 4 | B20: Navn | C20: Point | D20: x | E20: Skivenr
A21: Augustenborg Skole 5A-2 | B21: Rosa Margrethe Vohs | C21: 175 | D21: 1 | E21: =IF(E18<>"",E18+10,"") -> 135121
A22: Midtals Skytteforening | B22: Mathias Franke Andersen | C22: 188 | D22: 0 | E22: =IF(E21<>"",E21+10,"") -> 135131
A23: =$A$5 -> DGI Sønderjylland | B23: Ida Karstensen Nielsen | C23: 176 | D23: 1 | E23: =IF(E22<>"",E22+10,"") -> 135141
A24: Keld Eiffert | B24: Alexander Krogh | C24: 156 | D24: 0 | E24: =IF(E23<>"",E23+10,"") -> 135151
A25: keld.eiffert@bbsyd.dk | B25: Sum | C25: =SUM(C21:C24) -> 695 | D25: =SUM(D21:D24) -> 2
A26: ="Skole/hold " & (ROW()-2)/6+1 -> Skole/hold 5 | B26: Navn | C26: Point | D26: x | E26: Skivenr
A27: Broager Skole 5B-1 | B27: Line Sofie Teichert Madsen | C27: 192 | D27: 4 | E27: =IF(E24<>"",E24+10,"") -> 135161
A28: Broagerlands Skytteforening | B28: Elias Helding Gandrup | C28: 186 | D28: 0 | E28: =IF(E27<>"",E27+10,"") -> 135171
A29: =$A$5 -> DGI Sønderjylland | B29: Shasmina Kalika | C29: 189 | D29: 1 | E29: =IF(E28<>"",E28+10,"") -> 135181
A30: Lykke Hattesen | B30: Madicken Zahn Paulsen | C30: 189 | D30: 3 | E30: =IF(E29<>"",E29+10,"") -> 135191
A31: lykkehattesen@gmail.com | B31: Sum | C31: =SUM(C27:C30) -> 756 | D31: =SUM(D27:D30) -> 8
A32: ="Skole/hold " & (ROW()-2)/6+1 -> Skole/hold 6 | B32: Navn | C32: Point | D32: x | E32: Skivenr
A33: Oksbøl Friskole 5K-1 | B33: Sofie Hansen | C33: 186 | D33: 0 | E33: =IF(E30<>"",E30+10,"") -> 135201
A34: Nordals Skyttekreds | B34: Lukas Schink Hansen | C34: 181 | D34: 2 | E34: =IF(E33<>"",E33+10,"") -> 135211
A35: =$A$5 -> DGI Sønderjylland | B35: Peter Hvid | C35: 186 | D35: 2 | E35: =IF(E34<>"",E34+10,"") -> 135221
A36: Marie Sørensen | B36: Klara Poulsen Kristensen | C36: 183 | D36: 1 | E36: =IF(E35<>"",E35+10,"") -> 135231
A37: mariekort@mail.dk | B37: Sum | C37: =SUM(C33:C36) -> 736 | D37: =SUM(D33:D36) -> 5
A38: ="Skole/hold " & (ROW()-2)/6+1 -> Skole/hold 7 | B38: Navn | C38: Point | D38: x | E38: Skivenr
A39: Dybbøl Skolen 5B-1 | B39: Luna Kejser Jensen | C39: 189 | D39: 2 | E39: =IF(E36<>"",E36+10,"") -> 135241
A40: Sønderborg Skyttekreds | B40: Kaisa Spilling | C40: 184 | D40: 1 | E40: =IF(E39<>"",E39+10,"") -> 135251
A41: =$A$5 -> DGI Sønderjylland | B41: Oliver Lundbjeg Bidstrup | C41: 184 | D41: 2 | E41: =IF(E40<>"",E40+10,"") -> 135261
A42: Jimmy Illner | B42: Victoria Møller Böhlers | C42: 190 | D42: 3 | E42: =IF(E41<>"",E41+10,"") -> 135271
A43: ji@skyttekreds.dk | B43: Sum | C43: =SUM(C39:C42) -> 747 | D43: =SUM(D39:D42) -> 8
A44: ="Skole/hold " & (ROW()-2)/6+1 -> Skole/hold 8 | B44: Navn | C44: Point | D44: x | E44: Skivenr
A45: Dybbøl Skolen 5A-1 | B45: Silke Uldall Nielsen | C45: 0 | D45: 0 | E45: =IF(E42<>"",E42+10,"") -> 135281
A46: Sønderborg Skyttekreds | B46: Alberte Sofie Benkjer | C46: 0 | D46: 0 | E46: =IF(E45<>"",E45+10,"") -> 135291
A47: =$A$5 -> DGI Sønderjylland | B47: Julie Sørensen | C47: 0 | D47: 0 | E47: =IF(E46<>"",E46+10,"") -> 135301
A48: Jimmy Illner | B48: Hjalte Asmussen | C48: 0 | D48: 0 | E48: =IF(E47<>"",E47+10,"") -> 135311
A49: ji@skyttekreds.dk | B49: Sum | C49: =SUM(C45:C48) -> 0 | D49: =SUM(D45:D48) -> 0
A50: ="Skole/hold " & (ROW()-2)/6+1 -> Skole/hold 9 | B50: Navn | C50: Point | D50: x | E50: Skivenr
A51: Friskolen Østerlund 5-1 | B51: Madina M. Werner | C51: 0 | D51: 0 | E51: =IF(E48<>"",E48+10,"") -> 135321
A52: Midtals Skytteforening | B52: Aksel S. Jessen | C52: 0 | D52: 0 | E52: =IF(E51<>"",E51+10,"") -> 135331
A53: =$A$5 -> DGI Sønderjylland | B53: Dicte W. Jørgensen | C53: 0 | D53: 0 | E53: =IF(E52<>"",E52+10,"") -> 135341
A54: Marie Sørensen | B54: Ida M. Lorenzen | C54: 0 | D54: 0 | E54: =IF(E53<>"",E53+10,"") -> 135351
A55: mariekort@mail.dk | B55: Sum | C55: =SUM(C51:C54) -> 0 | D55: =SUM(D51:D54) -> 0
A56: ="Skole/hold " & (ROW()-2)/6+1 -> Skole/hold 10 | B56: Navn | C56: Point | D56: x | E56: Skivenr
A57: Humlehøj Skolen 5A-1 | B57: Josefine Frisk Christensen | C57: 198 | D57: 4 | E57: =IF(E54<>"",E54+10,"") -> 135361
A58: Sønderborg Skyttekreds | B58: Mathilde Uhrskov Lundgreen | C58: 184 | D58: 2 | E58: =IF(E57<>"",E57+10,"") -> 135371
A59: =$A$5 -> DGI Sønderjylland | B59: Camille Fick Johannsen | C59: 187 | D59: 2 | E59: =IF(E58<>"",E58+10,"") -> 135381
A60: Jimmy Illner | B60: Silas Loose Tinnesen | C60: 186 | D60: 2 | E60: =IF(E59<>"",E59+10,"") -> 135391
A61: ji@skyttekreds.dk | B61: Sum | C61: =SUM(C57:C60) -> 755 | D61: =SUM(D57:D60) -> 10
A62: ="Skole/hold " & (ROW()-2)/6+1 -> Skole/hold 11 | B62: Navn | C62: Point | D62: x | E62: Skivenr
A63: Ahlmann Skolen 5A-1 | B63: Johanna Bjerrum | C63: 187 | D63: 2 | E63: =IF(E60<>"",E60+10,"") -> 135401
A64: Sønderborg Skyttekreds | B64: Mimi Lyngkilde Clausen | C64: 185 | D64: 4 | E64: =IF(E63<>"",E63+10,"") -> 135411
A65: =$A$5 -> DGI Sønderjylland | B65: Viola Seeberg Haurum | C65: 181 | D65: 1 | E65: =IF(E64<>"",E64+10,"") -> 135421
A66: Jimmy Illner | B66: Mille Jozefowicz | C66: 182 | D66: 1 | E66: =IF(E65<>"",E65+10,"") -> 135431
A67: ji@skyttekreds.dk | B67: Sum | C67: =SUM(C63:C66) -> 735 | D67: =SUM(D63:D66) -> 8
A68: ="Skole/hold " & (ROW()-2)/6+1 -> Skole/hold 12 | B68: Navn | C68: Point | D68: x | E68: Skivenr
A69: Augustenborg Skole 5B-2 | B69: Loke Uduak Skov Christensen | C69: 190 | D69: 6 | E69: =IF(E66<>"",E66+10,"") -> 135441
A70: Midtals Skytteforening | B70: Maja Vonsild Jensen | C70: 188 | D70: 4 | E70: =IF(E69<>"",E69+10,"") -> 135451
A71: =$A$5 -> DGI Sønderjylland | B71: Nicolai Hadberg | C71: 187 | D71: 0 | E71: =IF(E70<>"",E70+10,"") -> 135461
A72: Keld Eiffert | B72: Louiza Kaluzny-Jarrov | C72: 186 | D72: 1 | E72: =IF(E71<>"",E71+10,"") -> 135471
A73: keld.eiffert@bbsyd.dk | B73: Sum | C73: =SUM(C69:C72) -> 751 | D73: =SUM(D69:D72) -> 11
A74: ="Skole/hold " & (ROW()-2)/6+1 -> Skole/hold 13 | B74: Navn | C74: Point | D74: x | E74: Skivenr
A75: Gråsten Skole 5B-1 | B75: Mille Laus Vollertsen | C75: 187 | D75: 4 | E75: =IF(E72<>"",E72+10,"") -> 135481
A76: Gråsten Skytteforening | B76: Patrick Good Hollænder | C76: 183 | D76: 1 | E76: =IF(E75<>"",E75+10,"") -> 135491
A77: =$A$5 -> DGI Sønderjylland | B77: Nanna Brogaard Roth | C77: 191 | D77: 1 | E77: =IF(E76<>"",E76+10,"") -> 135501
A78: Iver Clausen | B78: Lars Heissel | C78: 187 | D78: 2 | E78: =IF(E77<>"",E77+10,"") -> 135511
A79: iver.mona@bbsyd.dk | B79: Sum | C79: =SUM(C75:C78) -> 748 | D79: =SUM(D75:D78) -> 8
A80: ="Skole/hold " & (ROW()-2)/6+1 -> Skole/hold 14 | B80: Navn | C80: Point | D80: x | E80: Skivenr
A81: Dybbøl Skolen 5D-1 | B81: Liv Gregersen Elmer | C81: 181 | D81: 1 | E81: =IF(E78<>"",E78+10,"") -> 135521
A82: Sønderborg Skyttekreds | B82: Jones Hansen | C82: 189 | D82: 1 | E82: =IF(E81<>"",E81+10,"") -> 135531
A83: =$A$5 -> DGI Sønderjylland | B83: Frida Kou Jensen | C83: 186 | D83: 2 | E83: =IF(E82<>"",E82+10,"") -> 135541
A84: Jimmy Illner | B84: Victoria Benedikte Grum Kjærgaard | C84: 189 | D84: 3 | E84: =IF(E83<>"",E83+10,"") -> 135551
A85: ji@skyttekreds.dk | B85: Sum | C85: =SUM(C81:C84) -> 745 | D85: =SUM(D81:D84) -> 7
A86: ="Skole/hold " & (ROW()-2)/6+1 -> Skole/hold 15 | B86: Navn | C86: Point | D86: x | E86: Skivenr
A87: Oksbøl Friskole 5M-1 | B87: Celine Jungquist Christensen | C87: 186 | D87: 0 | E87: =IF(E84<>"",E84+10,"") -> 135561
A88: Nordals Skyttekreds | B88: Laura Kjærgaard | C88: 180 | D88: 1 | E88: =IF(E87<>"",E87+10,"") -> 135571
A89: =$A$5 -> DGI Sønderjylland | B89: Sascha Møller Abrahamsen | C89: 187 | D89: 0 | E89: =IF(E88<>"",E88+10,"") -> 135581
A90: Marie Sørensen | B90: Layla Clausen | C90: 192 | D90: 2 | E90: =IF(E89<>"",E89+10,"") -> 135591
A91: mariekort@mail.dk | B91: Sum | C91: =SUM(C87:C90) -> 745 | D91: =SUM(D87:D90) -> 3
A92: ="Skole/hold " & (ROW()-2)/6+1 -> Skole/hold 16 | B92: Navn | C92: Point | D92: x | E92: Skivenr
A93: Augustenborg Skole 5A-1 | B93: Amanda Angelica Hansen | C93: 191 | D93: 2 | E93: =IF(E90<>"",E90+10,"") -> 135601
A94: Midtals Skytteforening | B94: Lea Raabe Jæger | C94: 186 | D94: 1 | E94: =IF(E93<>"",E93+10,"") -> 135611
A95: =$A$5 -> DGI Sønderjylland | B95: Sophia Rahr Semmelmann | C95: 194 | D95: 7 | E95: =IF(E94<>"",E94+10,"") -> 135621
A96: Keld Eiffert | B96: Sofie Kinastovski Wolff | C96: 191 | D96: 4 | E96: =IF(E95<>"",E95+10,"") -> 135631
A97: keld.eiffert@bbsyd.dk | B97: Sum | C97: =SUM(C93:C96) -> 762 | D97: =SUM(D93:D96) -> 14
A98: ="Skole/hold " & (ROW()-2)/6+1 -> Skole/hold 17 | B98: Navn | C98: Point | D98: x | E98: Skivenr
A99: Skærbæk Realskole 5A-1 | B99: Lasse Sørensen | C99: 183 | D99: 0 | E99: =IF(E96<>"",E96+10,"") -> 135641
A100: Sparta | B100: Casper Nissen | C100: 191 | D100: 3 | E100: =IF(E99<>"",E99+10,"") -> 135651
A101: =$A$5 -> DGI Sønderjylland | B101: Morten Vejrup | C101: 187 | D101: 1 | E101: =IF(E100<>"",E100+10,"") -> 135661
A102: Niels Schmidt | B102: Silke Petersen | C102: 195 | D102: 3 | E102: =IF(E101<>"",E101+10,"") -> 135671
A103: ns@ecco.com | B103: Sum | C103: =SUM(C99:C102) -> 756 | D103: =SUM(D99:D102) -> 7
A104: ="Skole/hold " & (ROW()-2)/6+1 -> Skole/hold 18 | B104: Navn | C104: Point | D104: x | E104: Skivenr
A105: Dybbøl Skolen 5C-1 | B105: Kathrine Holm Østergaard | C105: 186 | D105: 3 | E105: =IF(E102<>"",E102+10,"") -> 135681
A106: Sønderborg Skyttekreds | B106: Said Mohammed Mosleh | C106: 180 | D106: 1 | E106: =IF(E105<>"",E105+10,"") -> 135691
A107: =$A$5 -> DGI Sønderjylland | B107: Eliza Anna Andreasen | C107: 189 | D107: 1 | E107: =IF(E106<>"",E106+10,"") -> 135701
A108: Jimmy Illner | B108: Sofia Lykkeø Enggaard | C108: 185 | D108: 2 | E108: =IF(E107<>"",E107+10,"") -> 135711
A109: ji@skyttekreds.dk | B109: Sum | C109: =SUM(C105:C108) -> 740 | D109: =SUM(D105:D108) -> 7
A110: ="Skole/hold " & (ROW()-2)/6+1 -> Skole/hold 19 | B110: Navn | C110: Point | D110: x | E110: Skivenr
A111: Augustenborg Skole 5B-1 | B111: Emma Bramvel Blaudzun | C111: 185 | D111: 3 | E111: 135841
A112: Midtals Skytteforening | B112: Lærke Bak | C112: 187 | D112: 2 | E112: =IF(E111<>"",E111+10,"") -> 135851
A113: =$A$5 -> DGI Sønderjylland | B113: Mathilde Plehn | C113: 191 | D113: 4 | E113: =IF(E112<>"",E112+10,"") -> 135861
A114: Keld Eiffert | B114: Silje Lindberg Lorenzen | C114: 190 | D114: 4 | E114: =IF(E113<>"",E113+10,"") -> 135871
A115: keld.eiffert@bbsyd.dk | B115: Sum | C115: =SUM(C111:C114) -> 753 | D115: =SUM(D111:D114) -> 13
A116: ="Skole/hold " & (ROW()-2)/6+1 -> Skole/hold 20 | B116: Navn | C116: Point | D116: x | E116: Skivenr
A117: Digeskolen 5H-1 | B117: Ida Marie Petersen | C117: 183 | D117: 1 | E117: =IF(E114<>"",E114+10,"") -> 135881
A118: Sparta | B118: Line Skovgaard | C118: 190 | D118: 2 | E118: =IF(E117<>"",E117+10,"") -> 135891
A119: =$A$5 -> DGI Sønderjylland | B119: Bertram Teglskov | C119: 188 | D119: 3 | E119: =IF(E118<>"",E118+10,"") -> 135901
A120: Niels Schmidt | B120: Rasmus Andresen | C120: 191 | D120: 1 | E120: =IF(E119<>"",E119+10,"") -> 135911
A121: ns@ecco.com | B121: Sum | C121: =SUM(C117:C120) -> 752 | D121: =SUM(D117:D120) -> 7
A122: ="Skole/hold " & (ROW()-2)/6+1 -> Skole/hold 21 | B122: Navn | C122: Point | D122: x | E122: Skivenr
A123: Gråsten Skole 5A-1 | B123: Marie Pedersen | C123: 194 | D123: 5 | E123: =IF(E120<>"",E120+10,"") -> 135921
A124: Gråsten Skytteforening | B124: Philip Bossen | C124: 188 | D124: 3 | E124: =IF(E123<>"",E123+10,"") -> 135931
A125: =$A$5 -> DGI Sønderjylland | B125: Iben Nissen | C125: 187 | D125: 2 | E125: =IF(E124<>"",E124+10,"") -> 135941
A126: Iver Clausen | B126: Nikola Malocha | C126: 180 | D126: 4 | E126: =IF(E125<>"",E125+10,"") -> 135951
A127: iver.mona@bbsyd.dk | B127: Sum | C127: =SUM(C123:C126) -> 749 | D127: =SUM(D123:D126) -> 14
A128: ="Skole/hold " & (ROW()-2)/6+1 -> Skole/hold 22 | B128: Navn | C128: Point | D128: x | E128: Skivenr
A129: Skærbæk Distriksskole 5A-1 | B129: Oskar Jørgensen | C129: 182 | D129: 2 | E129: =IF(E126<>"",E126+10,"") -> 135961
A130: Sparta | B130: Mads Olesen | C130: 188 | D130: 5 | E130: =IF(E129<>"",E129+10,"") -> 135971
A131: =$A$5 -> DGI Sønderjylland | B131: Emil Thomasen | C131: 187 | D131: 2 | E131: =IF(E130<>"",E130+10,"") -> 135981
A132: Niels Schmidt | B132: Maja Petersen | C132: 196 | D132: 5 | E132: =IF(E131<>"",E131+10,"") -> 135991
A133: ns@ecco.com | B133: Sum | C133: =SUM(C129:C132) -> 753 | D133: =SUM(D129:D132) -> 14
A134: ="Skole/hold " & (ROW()-2)/6+1 -> Skole/hold 23 | B134: Navn | C134: Point | D134: x | E134: Skivenr
A135: Skole - Klasse - Hold | B135: Elev 1 | C135: 0 | D135: 0 | E135: =IF(E132<>"",E132+10,"") -> 136001
A136: Forening | B136: Elev 2 | C136: 0 | D136: 0 | E136: =IF(E135<>"",E135+10,"") -> 136011
A137: =$A$5 -> DGI Sønderjylland | B137: Elev 3 | C137: 0 | D137: 0 | E137: =IF(E136<>"",E136+10,"") -> 136021
A138: Kontaktnavn | B138: Elev 4 | C138: 0 | D138: 0 | E138: =IF(E137<>"",E137+10,"") -> 136031
A139: Kontaktmail | B139: Sum | C139: =SUM(C135:C138) -> 0 | D139: =SUM(D135:D138) -> 0
A140: ="Skole/hold " & (ROW()-2)/6+1 -> Skole/hold 24 | B140: Navn | C140: Point | D140: x | E140: Skivenr
A141: Skole - Klasse - Hold | B141: Elev 1 | C141: 0 | D141: 0 | E141: =IF(E138<>"",E138+10,"") -> 136041
A142: Forening | B142: Elev 2 | C142: 0 | D142: 0 | E142: =IF(E141<>"",E141+10,"") -> 136051
A143: =$A$5 -> DGI Sønderjylland | B143: Elev 3 | C143: 0 | D143: 0 | E143: =IF(E142<>"",E142+10,"") -> 136061
A144: Kontaktnavn | B144: Elev 4 | C144: 0 | D144: 0 | E144: =IF(E143<>"",E143+10,"") -> 136071
A145: Kontaktmail | B145: Sum | C145: =SUM(C141:C144) -> 0 | D145: =SUM(D141:D144) -> 0
A146: ="Skole/hold " & (ROW()-2)/6+1 -> Skole/hold 25 | B146: Navn | C146: Point | D146: x | E146: Skivenr
A147: Skole - Klasse - Hold | B147: Elev 1 | C147: 0 | D147: 0 | E147: =IF(E144<>"",E144+10,"") -> 136081
A148: Forening | B148: Elev 2 | C148: 0 | D148: 0 | E148: =IF(E147<>"",E147+10,"") -> 136091
A149: =$A$5 -> DGI Sønderjylland | B149: Elev 3 | C149: 0 | D149: 0 | E149: =IF(E148<>"",E148+10,"") -> 136101
A150: Kontaktnavn | B150: Elev 4 | C150: 0 | D150: 0 | E150: =IF(E149<>"",E149+10,"") -> 136111
A151: Kontaktmail | B151: Sum | C151: =SUM(C147:C150) -> 0 | D151: =SUM(D147:D150) -> 0
A152: ="Skole/hold " & (ROW()-2)/6+1 -> Skole/hold 26 | B152: Navn | C152: Point | D152: x | E152: Skivenr
A153: Skole - Klasse - Hold | B153: Elev 1 | C153: 0 | D153: 0 | E153: =IF(E150<>"",E150+10,"") -> 136121
A154: Forening | B154: Elev 2 | C154: 0 | D154: 0 | E154: =IF(E153<>"",E153+10,"") -> 136131
A155: =$A$5 -> DGI Sønderjylland | B155: Elev 3 | C155: 0 | D155: 0 | E155: =IF(E154<>"",E154+10,"") -> 136141
A156: Kontaktnavn | B156: Elev 4 | C156: 0 | D156: 0 | E156: =IF(E155<>"",E155+10,"") -> 136151
A157: Kontaktmail | B157: Sum | C157: =SUM(C153:C156) -> 0 | D157: =SUM(D153:D156) -> 0
A158: ="Skole/hold " & (ROW()-2)/6+1 -> Skole/hold 27 | B158: Navn | C158: Point | D158: x | E158: Skivenr
A159: Skole - Klasse - Hold | B159: Elev 1 | C159: 0 | D159: 0 | E159: =IF(E156<>"",E156+10,"") -> 136161
A160: Forening | B160: Elev 2 | C160: 0 | D160: 0 | E160: =IF(E159<>"",E159+10,"") -> 136171
A161: =$A$5 -> DGI Sønderjylland | B161: Elev 3 | C161: 0 | D161: 0 | E161: =IF(E160<>"",E160+10,"") -> 136181
A162: Kontaktnavn | B162: Elev 4 | C162: 0 | D162: 0 | E162: =IF(E161<>"",E161+10,"") -> 136191
A163: Kontaktmail | B163: Sum | C163: =SUM(C159:C162) -> 0 | D163: =SUM(D159:D162) -> 0
A164: ="Skole/hold " & (ROW()-2)/6+1 -> Skole/hold 28 | B164: Navn | C164: Point | D164: x | E164: Skivenr
A165: Skole - Klasse - Hold | B165: Elev 1 | C165: 0 | D165: 0 | E165: =IF(E162<>"",E162+10,"") -> 136201
A166: Forening | B166: Elev 2 | C166: 0 | D166: 0 | E166: =IF(E165<>"",E165+10,"") -> 136211
A167: =$A$5 -> DGI Sønderjylland | B167: Elev 3 | C167: 0 | D167: 0 | E167: =IF(E166<>"",E166+10,"") -> 136221
A168: Kontaktnavn | B168: Elev 4 | C168: 0 | D168: 0 | E168: =IF(E167<>"",E167+10,"") -> 136231
A169: Kontaktmail | B169: Sum | C169: =SUM(C165:C168) -> 0 | D169: =SUM(D165:D168) -> 0
A170: ="Skole/hold " & (ROW()-2)/6+1 -> Skole/hold 29 | B170: Navn | C170: Point | D170: x | E170: Skivenr
A171: Skole - Klasse - Hold | B171: Elev 1 | C171: 0 | D171: 0 | E171: =IF(E168<>"",E168+10,"") -> 136241
A172: Forening | B172: Elev 2 | C172: 0 | D172: 0 | E172: =IF(E171<>"",E171+10,"") -> 136251
A173: =$A$5 -> DGI Sønderjylland | B173: Elev 3 | C173: 0 | D173: 0 | E173: =IF(E172<>"",E172+10,"") -> 136261
A174: Kontaktnavn | B174: Elev 4 | C174: 0 | D174: 0 | E174: =IF(E173<>"",E173+10,"") -> 136271
A175: Kontaktmail | B175: Sum | C175: =SUM(C171:C174) -> 0 | D175: =SUM(D171:D174) -> 0
A176: ="Skole/hold " & (ROW()-2)/6+1 -> Skole/hold 30 | B176: Navn | C176: Point | D176: x | E176: Skivenr
A177: Skole - Klasse - Hold | B177: Elev 1 | C177: 0 | D177: 0 | E177: =IF(E174<>"",E174+10,"") -> 136281
A178: Forening | B178: Elev 2 | C178: 0 | D178: 0 | E178: =IF(E177<>"",E177+10,"") -> 136291
A179: =$A$5 -> DGI Sønderjylland | B179: Elev 3 | C179: 0 | D179: 0 | E179: =IF(E178<>"",E178+10,"") -> 136301
A180: Kontaktnavn | B180: Elev 4 | C180: 0 | D180: 0 | E180: =IF(E179<>"",E179+10,"") -> 136311
A181: Kontaktmail | B181: Sum | C181: =SUM(C177:C180) -> 0 | D181: =SUM(D177:D180) -> 0
A182: ="Skole/hold " & (ROW()-2)/6+1 -> Skole/hold 31 | B182: Navn | C182: Point | D182: x | E182: Skivenr
A183: Skole - Klasse - Hold | B183: Elev 1 | C183: 0 | D183: 0 | E183: =IF(E180<>"",E180+10,"") -> 136321
A184: Forening | B184: Elev 2 | C184: 0 | D184: 0 | E184: =IF(E183<>"",E183+10,"") -> 136331
A185: =$A$5 -> DGI Sønderjylland | B185: Elev 3 | C185: 0 | D185: 0 | E185: =IF(E184<>"",E184+10,"") -> 136341
A186: Kontaktnavn | B186: Elev 4 | C186: 0 | D186: 0 | E186: =IF(E185<>"",E185+10,"") -> 136351
A187: Kontaktmail | B187: Sum | C187: =SUM(C183:C186) -> 0 | D187: =SUM(D183:D186) -> 0
A188: ="Skole/hold " & (ROW()-2)/6+1 -> Skole/hold 32 | B188: Navn | C188: Point | D188: x | E188: Skivenr
A189: Skole - Klasse - Hold | B189: Elev 1 | C189: 0 | D189: 0 | E189: =IF(E186<>"",E186+10,"") -> 136361
A190: Forening | B190: Elev 2 | C190: 0 | D190: 0 | E190: =IF(E189<>"",E189+10,"") -> 136371
A191: =$A$5 -> DGI Sønderjylland | B191: Elev 3 | C191: 0 | D191: 0 | E191: =IF(E190<>"",E190+10,"") -> 136381
A192: Kontaktnavn | B192: Elev 4 | C192: 0 | D192: 0 | E192: =IF(E191<>"",E191+10,"") -> 136391
A193: Kontaktmail | B193: Sum | C193: =SUM(C189:C192) -> 0 | D193: =SUM(D189:D192) -> 0
A194: ="Skole/hold " & (ROW()-2)/6+1 -> Skole/hold 33 | B194: Navn | C194: Point | D194: x | E194: Skivenr
A195: Skole - Klasse - Hold | B195: Elev 1 | C195: 0 | D195: 0 | E195: =IF(E192<>"",E192+10,"") -> 136401
A196: Forening | B196: Elev 2 | C196: 0 | D196: 0 | E196: =IF(E195<>"",E195+10,"") -> 136411
A197: =$A$5 -> DGI Sønderjylland | B197: Elev 3 | C197: 0 | D197: 0 | E197: =IF(E196<>"",E196+10,"") -> 136421
A198: Kontaktnavn | B198: Elev 4 | C198: 0 | D198: 0 | E198: =IF(E197<>"",E197+10,"") -> 136431
A199: Kontaktmail | B199: Sum | C199: =SUM(C195:C198) -> 0 | D199: =SUM(D195:D198) -> 0
A200: ="Skole/hold " & (ROW()-2)/6+1 -> Skole/hold 34 | B200: Navn | C200: Point | D200: x | E200: Skivenr
... 5 more rows

Sheet Holdresultat
A1: ="Skole DM i Skydning, Landsdelsfinale " &Setup!B5 -> Skole DM i Skydning, Landsdelsfinale 2021
A2: ="Holdresultater, " &Setup!B6 -> Holdresultater, DGI Sønderjylland
A3: Nr. | B3: Skole / Hold | C3: Point | D3: / | E3: x
A4: 1 | B4: ='Indtast resultat'!A93 -> Augustenborg Skole 5A-1 | C4: ='Indtast resultat'!C97 -> 762 | D4: / | E4: ='Indtast resultat'!D97 -> 14
A5: 2 | B5: ='Indtast resultat'!A27 -> Broager Skole 5B-1 | C5: ='Indtast resultat'!C31 -> 756 | D5: / | E5: ='Indtast resultat'!D31 -> 8
A6: 3 | B6: ='Indtast resultat'!A99 -> Skærbæk Realskole 5A-1 | C6: ='Indtast resultat'!C103 -> 756 | D6: / | E6: ='Indtast resultat'!D103 -> 7
A7: 4 | B7: ='Indtast resultat'!A57 -> Humlehøj Skolen 5A-1 | C7: ='Indtast resultat'!C61 -> 755 | D7: / | E7: ='Indtast resultat'!D61 -> 10
A8: 5 | B8: ='Indtast resultat'!A129 -> Skærbæk Distriksskole 5A-1 | C8: ='Indtast resultat'!C133 -> 753 | D8: / | E8: ='Indtast resultat'!D133 -> 14
A9: 6 | B9: ='Indtast resultat'!A111 -> Augustenborg Skole 5B-1 | C9: ='Indtast resultat'!C115 -> 753 | D9: / | E9: ='Indtast resultat'!D115 -> 13
A10: 7 | B10: ='Indtast resultat'!A117 -> Digeskolen 5H-1 | C10: ='Indtast resultat'!C121 -> 752 | D10: / | E10: ='Indtast resultat'!D121 -> 7
A11: 8 | B11: ='Indtast resultat'!A69 -> Augustenborg Skole 5B-2 | C11: ='Indtast resultat'!C73 -> 751 | D11: / | E11: ='Indtast resultat'!D73 -> 11
A12: 9 | B12: ='Indtast resultat'!A123 -> Gråsten Skole 5A-1 | C12: ='Indtast resultat'!C127 -> 749 | D12: / | E12: ='Indtast resultat'!D127 -> 14
A13: 10 | B13: ='Indtast resultat'!A75 -> Gråsten Skole 5B-1 | C13: ='Indtast resultat'!C79 -> 748 | D13: / | E13: ='Indtast resultat'!D79 -> 8
A14: 11 | B14: ='Indtast resultat'!A39 -> Dybbøl Skolen 5B-1 | C14: ='Indtast resultat'!C43 -> 747 | D14: / | E14: ='Indtast resultat'!D43 -> 8
A15: 12 | B15: ='Indtast resultat'!A81 -> Dybbøl Skolen 5D-1 | C15: ='Indtast resultat'!C85 -> 745 | D15: / | E15: ='Indtast resultat'!D85 -> 7
A16: 13 | B16: ='Indtast resultat'!A87 -> Oksbøl Friskole 5M-1 | C16: ='Indtast resultat'!C91 -> 745 | D16: / | E16: ='Indtast resultat'!D91 -> 3
A17: 14 | B17: ='Indtast resultat'!A3 -> Svenstrup Friskole 5.-1 | C17: ='Indtast resultat'!C7 -> 743 | D17: / | E17: ='Indtast resultat'!D7 -> 7
A18: 15 | B18: ='Indtast resultat'!A105 -> Dybbøl Skolen 5C-1 | C18: ='Indtast resultat'!C109 -> 740 | D18: / | E18: ='Indtast resultat'!D109 -> 7
A19: 16 | B19: ='Indtast resultat'!A33 -> Oksbøl Friskole 5K-1 | C19: ='Indtast resultat'!C37 -> 736 | D19: / | E19: ='Indtast resultat'!D37 -> 5
A20: 17 | B20: ='Indtast resultat'!A63 -> Ahlmann Skolen 5A-1 | C20: ='Indtast resultat'!C67 -> 735 | D20: / | E20: ='Indtast resultat'!D67 -> 8
A21: 18 | B21: ='Indtast resultat'!A9 -> Broager Skole 5C-1 | C21: ='Indtast resultat'!C13 -> 719 | D21: / | E21: ='Indtast resultat'!D13 -> 3
A22: 19 | B22: ='Indtast resultat'!A21 -> Augustenborg Skole 5A-2 | C22: ='Indtast resultat'!C25 -> 695 | D22: / | E22: ='Indtast resultat'!D25 -> 2
A23: 20 | B23: ='Indtast resultat'!A15 -> Nordals Skolen 5B-1 | C23: ='Indtast resultat'!C19 -> 0 | D23: / | E23: ='Indtast resultat'!D19 -> 0
A24: 21 | B24: ='Indtast resultat'!A45 -> Dybbøl Skolen 5A-1 | C24: ='Indtast resultat'!C49 -> 0 | D24: / | E24: ='Indtast resultat'!D49 -> 0
A25: 22 | B25: ='Indtast resultat'!A51 -> Friskolen Østerlund 5-1 | C25: ='Indtast resultat'!C55 -> 0 | D25: / | E25: ='Indtast resultat'!D55 -> 0
A26: 23 | B26: ='Indtast resultat'!A135 -> Skole - Klasse - Hold | C26: ='Indtast resultat'!C139 -> 0 | D26: / | E26: ='Indtast resultat'!D139 -> 0
A27: 24 | B27: ='Indtast resultat'!A141 -> Skole - Klasse - Hold | C27: ='Indtast resultat'!C145 -> 0 | D27: / | E27: ='Indtast resultat'!D145 -> 0
A28: 25 | B28: ='Indtast resultat'!A147 -> Skole - Klasse - Hold | C28: ='Indtast resultat'!C151 -> 0 | D28: / | E28: ='Indtast resultat'!D151 -> 0
A29: 26 | B29: ='Indtast resultat'!A153 -> Skole - Klasse - Hold | C29: ='Indtast resultat'!C157 -> 0 | D29: / | E29: ='Indtast resultat'!D157 -> 0
A30: 27 | B30: ='Indtast resultat'!A159 -> Skole - Klasse - Hold | C30: ='Indtast resultat'!C163 -> 0 | D30: / | E30: ='Indtast resultat'!D163 -> 0
A31: 28 | B31: ='Indtast resultat'!A165 -> Skole - Klasse - Hold | C31: ='Indtast resultat'!C169 -> 0 | D31: / | E31: ='Indtast resultat'!D169 -> 0
A32: 29 | B32: ='Indtast resultat'!A171 -> Skole - Klasse - Hold | C32: ='Indtast resultat'!C175 -> 0 | D32: / | E32: ='Indtast resultat'!D175 -> 0
A33: 30 | B33: ='Indtast resultat'!A177 -> Skole - Klasse - Hold | C33: ='Indtast resultat'!C181 -> 0 | D33: / | E33: ='Indtast resultat'!D181 -> 0
A34: 31 | B34: ='Indtast resultat'!A183 -> Skole - Klasse - Hold | C34: ='Indtast resultat'!C187 -> 0 | D34: / | E34: ='Indtast resultat'!D187 -> 0
A35: 32 | B35: ='Indtast resultat'!A189 -> Skole - Klasse - Hold | C35: ='Indtast resultat'!C193 -> 0 | D35: / | E35: ='Indtast resultat'!D193 -> 0
A36: 33 | B36: ='Indtast resultat'!A195 -> Skole - Klasse - Hold | C36: ='Indtast resultat'!C199 -> 0 | D36: / | E36: ='Indtast resultat'!D199 -> 0
A37: 34 | B37: ='Indtast resultat'!A201 -> Skole - Klasse - Hold | C37: ='Indtast resultat'!C205 -> 0 | D37: / | E37: ='Indtast resultat'!D205 -> 0

Sheet Individuel
A1: ="Skole DM i Skydning, Landsdelsfinale " &Setup!B5 -> Skole DM i Skydning, Landsdelsfinale 2021
A2: ="Individuelle resultater, " &Setup!B6 -> Individuelle resultater, DGI Sønderjylland
A3: Nr. | B3: Navn | C3: Skole / Hold | D3: Point | E3: / | F3: x
A4: 1 | B4: ='Indtast resultat'!B57 -> Josefine Frisk Christensen | C4: ='Indtast resultat'!A57 -> Humlehøj Skolen 5A-1 | D4: ='Indtast resultat'!C57 -> 198 | E4: / | F4: ='Indtast resultat'!D57 -> 4
A5: 2 | B5: ='Indtast resultat'!B132 -> Maja Petersen | C5: ='Indtast resultat'!A129 -> Skærbæk Distriksskole 5A-1 | D5: ='Indtast resultat'!C132 -> 196 | E5: / | F5: ='Indtast resultat'!D132 -> 5
A6: 3 | B6: ='Indtast resultat'!B102 -> Silke Petersen | C6: ='Indtast resultat'!A99 -> Skærbæk Realskole 5A-1 | D6: ='Indtast resultat'!C102 -> 195 | E6: / | F6: ='Indtast resultat'!D102 -> 3
A7: 4 | B7: ='Indtast resultat'!B95 -> Sophia Rahr Semmelmann | C7: ='Indtast resultat'!A93 -> Augustenborg Skole 5A-1 | D7: ='Indtast resultat'!C95 -> 194 | E7: / | F7: ='Indtast resultat'!D95 -> 7
A8: 5 | B8: ='Indtast resultat'!B123 -> Marie Pedersen | C8: ='Indtast resultat'!A123 -> Gråsten Skole 5A-1 | D8: ='Indtast resultat'!C123 -> 194 | E8: / | F8: ='Indtast resultat'!D123 -> 5
A9: 6 | B9: ='Indtast resultat'!B27 -> Line Sofie Teichert Madsen | C9: ='Indtast resultat'!A27 -> Broager Skole 5B-1 | D9: ='Indtast resultat'!C27 -> 192 | E9: / | F9: ='Indtast resultat'!D27 -> 4
A10: 7 | B10: ='Indtast resultat'!B90 -> Layla Clausen | C10: ='Indtast resultat'!A87 -> Oksbøl Friskole 5M-1 | D10: ='Indtast resultat'!C90 -> 192 | E10: / | F10: ='Indtast resultat'!D90 -> 2
A11: 8 | B11: ='Indtast resultat'!B3 -> Luca Schmidt | C11: ='Indtast resultat'!A3 -> Svenstrup Friskole 5.-1 | D11: ='Indtast resultat'!C3 -> 191 | E11: / | F11: ='Indtast resultat'!D3 -> 4
A12: 9 | B12: ='Indtast resultat'!B96 -> Sofie Kinastovski Wolff | C12: ='Indtast resultat'!A93 -> Augustenborg Skole 5A-1 | D12: ='Indtast resultat'!C96 -> 191 | E12: / | F12: ='Indtast resultat'!D96 -> 4
A13: 10 | B13: ='Indtast resultat'!B113 -> Mathilde Plehn | C13: ='Indtast resultat'!A111 -> Augustenborg Skole 5B-1 | D13: ='Indtast resultat'!C113 -> 191 | E13: / | F13: ='Indtast resultat'!D113 -> 4
A14: 11 | B14: ='Indtast resultat'!B100 -> Casper Nissen | C14: ='Indtast resultat'!A99 -> Skærbæk Realskole 5A-1 | D14: ='Indtast resultat'!C100 -> 191 | E14: / | F14: ='Indtast resultat'!D100 -> 3
A15: 12 | B15: ='Indtast resultat'!B93 -> Amanda Angelica Hansen | C15: ='Indtast resultat'!A93 -> Augustenborg Skole 5A-1 | D15: ='Indtast resultat'!C93 -> 191 | E15: / | F15: ='Indtast resultat'!D93 -> 2
A16: 13 | B16: ='Indtast resultat'!B77 -> Nanna Brogaard Roth | C16: ='Indtast resultat'!A75 -> Gråsten Skole 5B-1 | D16: ='Indtast resultat'!C77 -> 191 | E16: / | F16: ='Indtast resultat'!D77 -> 1
A17: 14 | B17: ='Indtast resultat'!B120 -> Rasmus Andresen | C17: ='Indtast resultat'!A117 -> Digeskolen 5H-1 | D17: ='Indtast resultat'!C120 -> 191 | E17: / | F17: ='Indtast resultat'!D120 -> 1
A18: 15 | B18: ='Indtast resultat'!B69 -> Loke Uduak Skov Christensen | C18: ='Indtast resultat'!A69 -> Augustenborg Skole 5B-2 | D18: ='Indtast resultat'!C69 -> 190 | E18: / | F18: ='Indtast resultat'!D69 -> 6
A19: 16 | B19: ='Indtast resultat'!B114 -> Silje Lindberg Lorenzen | C19: ='Indtast resultat'!A111 -> Augustenborg Skole 5B-1 | D19: ='Indtast resultat'!C114 -> 190 | E19: / | F19: ='Indtast resultat'!D114 -> 4
A20: 17 | B20: ='Indtast resultat'!B42 -> Victoria Møller Böhlers | C20: ='Indtast resultat'!A39 -> Dybbøl Skolen 5B-1 | D20: ='Indtast resultat'!C42 -> 190 | E20: / | F20: ='Indtast resultat'!D42 -> 3
A21: 18 | B21: ='Indtast resultat'!B118 -> Line Skovgaard | C21: ='Indtast resultat'!A117 -> Digeskolen 5H-1 | D21: ='Indtast resultat'!C118 -> 190 | E21: / | F21: ='Indtast resultat'!D118 -> 2
A22: 19 | B22: ='Indtast resultat'!B30 -> Madicken Zahn Paulsen | C22: ='Indtast resultat'!A27 -> Broager Skole 5B-1 | D22: ='Indtast resultat'!C30 -> 189 | E22: / | F22: ='Indtast resultat'!D30 -> 3
A23: 20 | B23: ='Indtast resultat'!B84 -> Victoria Benedikte Grum Kjærgaard | C23: ='Indtast resultat'!A81 -> Dybbøl Skolen 5D-1 | D23: ='Indtast resultat'!C84 -> 189 | E23: / | F23: ='Indtast resultat'!D84 -> 3
A24: 21 | B24: ='Indtast resultat'!B11 -> Freja | C24: ='Indtast resultat'!A9 -> Broager Skole 5C-1 | D24: ='Indtast resultat'!C11 -> 189 | E24: / | F24: ='Indtast resultat'!D11 -> 2
A25: 22 | B25: ='Indtast resultat'!B39 -> Luna Kejser Jensen | C25: ='Indtast resultat'!A39 -> Dybbøl Skolen 5B-1 | D25: ='Indtast resultat'!C39 -> 189 | E25: / | F25: ='Indtast resultat'!D39 -> 2
A26: 23 | B26: ='Indtast resultat'!B29 -> Shasmina Kalika | C26: ='Indtast resultat'!A27 -> Broager Skole 5B-1 | D26: ='Indtast resultat'!C29 -> 189 | E26: / | F26: ='Indtast resultat'!D29 -> 1
A27: 24 | B27: ='Indtast resultat'!B82 -> Jones Hansen | C27: ='Indtast resultat'!A81 -> Dybbøl Skolen 5D-1 | D27: ='Indtast resultat'!C82 -> 189 | E27: / | F27: ='Indtast resultat'!D82 -> 1
A28: 25 | B28: ='Indtast resultat'!B107 -> Eliza Anna Andreasen | C28: ='Indtast resultat'!A105 -> Dybbøl Skolen 5C-1 | D28: ='Indtast resultat'!C107 -> 189 | E28: / | F28: ='Indtast resultat'!D107 -> 1
A29: 26 | B29: ='Indtast resultat'!B130 -> Mads Olesen | C29: ='Indtast resultat'!A129 -> Skærbæk Distriksskole 5A-1 | D29: ='Indtast resultat'!C130 -> 188 | E29: / | F29: ='Indtast resultat'!D130 -> 5
A30: 27 | B30: ='Indtast resultat'!B70 -> Maja Vonsild Jensen | C30: ='Indtast resultat'!A69 -> Augustenborg Skole 5B-2 | D30: ='Indtast resultat'!C70 -> 188 | E30: / | F30: ='Indtast resultat'!D70 -> 4
A31: 28 | B31: ='Indtast resultat'!B119 -> Bertram Teglskov | C31: ='Indtast resultat'!A117 -> Digeskolen 5H-1 | D31: ='Indtast resultat'!C119 -> 188 | E31: / | F31: ='Indtast resultat'!D119 -> 3
A32: 29 | B32: ='Indtast resultat'!B124 -> Philip Bossen | C32: ='Indtast resultat'!A123 -> Gråsten Skole 5A-1 | D32: ='Indtast resultat'!C124 -> 188 | E32: / | F32: ='Indtast resultat'!D124 -> 3
A33: 30 | B33: ='Indtast resultat'!B22 -> Mathias Franke Andersen | C33: ='Indtast resultat'!A21 -> Augustenborg Skole 5A-2 | D33: ='Indtast resultat'!C22 -> 188 | E33: / | F33: ='Indtast resultat'!D22 -> 0
A34: 31 | B34: ='Indtast resultat'!B75 -> Mille Laus Vollertsen | C34: ='Indtast resultat'!A75 -> Gråsten Skole 5B-1 | D34: ='Indtast resultat'!C75 -> 187 | E34: / | F34: ='Indtast resultat'!D75 -> 4
A35: 32 | B35: ='Indtast resultat'!B59 -> Camille Fick Johannsen | C35: ='Indtast resultat'!A57 -> Humlehøj Skolen 5A-1 | D35: ='Indtast resultat'!C59 -> 187 | E35: / | F35: ='Indtast resultat'!D59 -> 2
A36: 33 | B36: ='Indtast resultat'!B63 -> Johanna Bjerrum | C36: ='Indtast resultat'!A63 -> Ahlmann Skolen 5A-1 | D36: ='Indtast resultat'!C63 -> 187 | E36: / | F36: ='Indtast resultat'!D63 -> 2
A37: 34 | B37: ='Indtast resultat'!B78 -> Lars Heissel | C37: ='Indtast resultat'!A75 -> Gråsten Skole 5B-1 | D37: ='Indtast resultat'!C78 -> 187 | E37: / | F37: ='Indtast resultat'!D78 -> 2
A38: 35 | B38: ='Indtast resultat'!B112 -> Lærke Bak | C38: ='Indtast resultat'!A111 -> Augustenborg Skole 5B-1 | D38: ='Indtast resultat'!C112 -> 187 | E38: / | F38: ='Indtast resultat'!D112 -> 2
A39: 36 | B39: ='Indtast resultat'!B131 -> Emil Thomasen | C39: ='Indtast resultat'!A129 -> Skærbæk Distriksskole 5A-1 | D39: ='Indtast resultat'!C131 -> 187 | E39: / | F39: ='Indtast resultat'!D131 -> 2
A40: 37 | B40: ='Indtast resultat'!B125 -> Iben Nissen | C40: ='Indtast resultat'!A123 -> Gråsten Skole 5A-1 | D40: ='Indtast resultat'!C125 -> 187 | E40: / | F40: ='Indtast resultat'!D125 -> 2
A41: 38 | B41: ='Indtast resultat'!B101 -> Morten Vejrup | C41: ='Indtast resultat'!A99 -> Skærbæk Realskole 5A-1 | D41: ='Indtast resultat'!C101 -> 187 | E41: / | F41: ='Indtast resultat'!D101 -> 1
A42: 39 | B42: ='Indtast resultat'!B71 -> Nicolai Hadberg | C42: ='Indtast resultat'!A69 -> Augustenborg Skole 5B-2 | D42: ='Indtast resultat'!C71 -> 187 | E42: / | F42: ='Indtast resultat'!D71 -> 0
A43: 40 | B43: ='Indtast resultat'!B89 -> Sascha Møller Abrahamsen | C43: ='Indtast resultat'!A87 -> Oksbøl Friskole 5M-1 | D43: ='Indtast resultat'!C89 -> 187 | E43: / | F43: ='Indtast resultat'!D89 -> 0
A44: 41 | B44: ='Indtast resultat'!B105 -> Kathrine Holm Østergaard | C44: ='Indtast resultat'!A105 -> Dybbøl Skolen 5C-1 | D44: ='Indtast resultat'!C105 -> 186 | E44: / | F44: ='Indtast resultat'!D105 -> 3
A45: 42 | B45: ='Indtast resultat'!B35 -> Peter Hvid | C45: ='Indtast resultat'!A33 -> Oksbøl Friskole 5K-1 | D45: ='Indtast resultat'!C35 -> 186 | E45: / | F45: ='Indtast resultat'!D35 -> 2
A46: 43 | B46: ='Indtast resultat'!B60 -> Silas Loose Tinnesen | C46: ='Indtast resultat'!A57 -> Humlehøj Skolen 5A-1 | D46: ='Indtast resultat'!C60 -> 186 | E46: / | F46: ='Indtast resultat'!D60 -> 2
A47: 44 | B47: ='Indtast resultat'!B83 -> Frida Kou Jensen | C47: ='Indtast resultat'!A81 -> Dybbøl Skolen 5D-1 | D47: ='Indtast resultat'!C83 -> 186 | E47: / | F47: ='Indtast resultat'!D83 -> 2
A48: 45 | B48: ='Indtast resultat'!B4 -> Albert Jørgensen | C48: ='Indtast resultat'!A3 -> Svenstrup Friskole 5.-1 | D48: ='Indtast resultat'!C4 -> 186 | E48: / | F48: ='Indtast resultat'!D4 -> 1
A49: 46 | B49: ='Indtast resultat'!B72 -> Louiza Kaluzny-Jarrov | C49: ='Indtast resultat'!A69 -> Augustenborg Skole 5B-2 | D49: ='Indtast resultat'!C72 -> 186 | E49: / | F49: ='Indtast resultat'!D72 -> 1
A50: 47 | B50: ='Indtast resultat'!B94 -> Lea Raabe Jæger | C50: ='Indtast resultat'!A93 -> Augustenborg Skole 5A-1 | D50: ='Indtast resultat'!C94 -> 186 | E50: / | F50: ='Indtast resultat'!D94 -> 1
A51: 48 | B51: ='Indtast resultat'!B5 -> Jacob Alberts | C51: ='Indtast resultat'!A3 -> Svenstrup Friskole 5.-1 | D51: ='Indtast resultat'!C5 -> 186 | E51: / | F51: ='Indtast resultat'!D5 -> 0
A52: 49 | B52: ='Indtast resultat'!B28 -> Elias Helding Gandrup | C52: ='Indtast resultat'!A27 -> Broager Skole 5B-1 | D52: ='Indtast resultat'!C28 -> 186 | E52: / | F52: ='Indtast resultat'!D28 -> 0
A53: 50 | B53: ='Indtast resultat'!B33 -> Sofie Hansen | C53: ='Indtast resultat'!A33 -> Oksbøl Friskole 5K-1 | D53: ='Indtast resultat'!C33 -> 186 | E53: / | F53: ='Indtast resultat'!D33 -> 0
A54: 51 | B54: ='Indtast resultat'!B87 -> Celine Jungquist Christensen | C54: ='Indtast resultat'!A87 -> Oksbøl Friskole 5M-1 | D54: ='Indtast resultat'!C87 -> 186 | E54: / | F54: ='Indtast resultat'!D87 -> 0
A55: 52 | B55: ='Indtast resultat'!B64 -> Mimi Lyngkilde Clausen | C55: ='Indtast resultat'!A63 -> Ahlmann Skolen 5A-1 | D55: ='Indtast resultat'!C64 -> 185 | E55: / | F55: ='Indtast resultat'!D64 -> 4
A56: 53 | B56: ='Indtast resultat'!B111 -> Emma Bramvel Blaudzun | C56: ='Indtast resultat'!A111 -> Augustenborg Skole 5B-1 | D56: ='Indtast resultat'!C111 -> 185 | E56: / | F56: ='Indtast resultat'!D111 -> 3
A57: 54 | B57: ='Indtast resultat'!B108 -> Sofia Lykkeø Enggaard | C57: ='Indtast resultat'!A105 -> Dybbøl Skolen 5C-1 | D57: ='Indtast resultat'!C108 -> 185 | E57: / | F57: ='Indtast resultat'!D108 -> 2
A58: 55 | B58: ='Indtast resultat'!B41 -> Oliver Lundbjeg Bidstrup | C58: ='Indtast resultat'!A39 -> Dybbøl Skolen 5B-1 | D58: ='Indtast resultat'!C41 -> 184 | E58: / | F58: ='Indtast resultat'!D41 -> 2
A59: 56 | B59: ='Indtast resultat'!B58 -> Mathilde Uhrskov Lundgreen | C59: ='Indtast resultat'!A57 -> Humlehøj Skolen 5A-1 | D59: ='Indtast resultat'!C58 -> 184 | E59: / | F59: ='Indtast resultat'!D58 -> 2
A60: 57 | B60: ='Indtast resultat'!B40 -> Kaisa Spilling | C60: ='Indtast resultat'!A39 -> Dybbøl Skolen 5B-1 | D60: ='Indtast resultat'!C40 -> 184 | E60: / | F60: ='Indtast resultat'!D40 -> 1
A61: 58 | B61: ='Indtast resultat'!B36 -> Klara Poulsen Kristensen | C61: ='Indtast resultat'!A33 -> Oksbøl Friskole 5K-1 | D61: ='Indtast resultat'!C36 -> 183 | E61: / | F61: ='Indtast resultat'!D36 -> 1
A62: 59 | B62: ='Indtast resultat'!B76 -> Patrick Good Hollænder | C62: ='Indtast resultat'!A75 -> Gråsten Skole 5B-1 | D62: ='Indtast resultat'!C76 -> 183 | E62: / | F62: ='Indtast resultat'!D76 -> 1
A63: 60 | B63: ='Indtast resultat'!B117 -> Ida Marie Petersen | C63: ='Indtast resultat'!A117 -> Digeskolen 5H-1 | D63: ='Indtast resultat'!C117 -> 183 | E63: / | F63: ='Indtast resultat'!D117 -> 1
A64: 61 | B64: ='Indtast resultat'!B99 -> Lasse Sørensen | C64: ='Indtast resultat'!A99 -> Skærbæk Realskole 5A-1 | D64: ='Indtast resultat'!C99 -> 183 | E64: / | F64: ='Indtast resultat'!D99 -> 0
A65: 62 | B65: ='Indtast resultat'!B129 -> Oskar Jørgensen | C65: ='Indtast resultat'!A129 -> Skærbæk Distriksskole 5A-1 | D65: ='Indtast resultat'!C129 -> 182 | E65: / | F65: ='Indtast resultat'!D129 -> 2
A66: 63 | B66: ='Indtast resultat'!B66 -> Mille Jozefowicz | C66: ='Indtast resultat'!A63 -> Ahlmann Skolen 5A-1 | D66: ='Indtast resultat'!C66 -> 182 | E66: / | F66: ='Indtast resultat'!D66 -> 1
A67: 64 | B67: ='Indtast resultat'!B34 -> Lukas Schink Hansen | C67: ='Indtast resultat'!A33 -> Oksbøl Friskole 5K-1 | D67: ='Indtast resultat'!C34 -> 181 | E67: / | F67: ='Indtast resultat'!D34 -> 2
A68: 65 | B68: ='Indtast resultat'!B65 -> Viola Seeberg Haurum | C68: ='Indtast resultat'!A63 -> Ahlmann Skolen 5A-1 | D68: ='Indtast resultat'!C65 -> 181 | E68: / | F68: ='Indtast resultat'!D65 -> 1
A69: 66 | B69: ='Indtast resultat'!B81 -> Liv Gregersen Elmer | C69: ='Indtast resultat'!A81 -> Dybbøl Skolen 5D-1 | D69: ='Indtast resultat'!C81 -> 181 | E69: / | F69: ='Indtast resultat'!D81 -> 1
A70: 67 | B70: ='Indtast resultat'!B126 -> Nikola Malocha | C70: ='Indtast resultat'!A123 -> Gråsten Skole 5A-1 | D70: ='Indtast resultat'!C126 -> 180 | E70: / | F70: ='Indtast resultat'!D126 -> 4
A71: 68 | B71: ='Indtast resultat'!B6 -> Frederikke Clausen | C71: ='Indtast resultat'!A3 -> Svenstrup Friskole 5.-1 | D71: ='Indtast resultat'!C6 -> 180 | E71: / | F71: ='Indtast resultat'!D6 -> 2
A72: 69 | B72: ='Indtast resultat'!B88 -> Laura Kjærgaard | C72: ='Indtast resultat'!A87 -> Oksbøl Friskole 5M-1 | D72: ='Indtast resultat'!C88 -> 180 | E72: / | F72: ='Indtast resultat'!D88 -> 1
A73: 70 | B73: ='Indtast resultat'!B106 -> Said Mohammed Mosleh | C73: ='Indtast resultat'!A105 -> Dybbøl Skolen 5C-1 | D73: ='Indtast resultat'!C106 -> 180 | E73: / | F73: ='Indtast resultat'!D106 -> 1
A74: 71 | B74: ='Indtast resultat'!B9 -> Ida | C74: ='Indtast resultat'!A9 -> Broager Skole 5C-1 | D74: ='Indtast resultat'!C9 -> 180 | E74: / | F74: ='Indtast resultat'!D9 -> 0
A75: 72 | B75: ='Indtast resultat'!B12 -> William | C75: ='Indtast resultat'!A9 -> Broager Skole 5C-1 | D75: ='Indtast resultat'!C12 -> 177 | E75: / | F75: ='Indtast resultat'!D12 -> 0
A76: 73 | B76: ='Indtast resultat'!B23 -> Ida Karstensen Nielsen | C76: ='Indtast resultat'!A21 -> Augustenborg Skole 5A-2 | D76: ='Indtast resultat'!C23 -> 176 | E76: / | F76: ='Indtast resultat'!D23 -> 1
A77: 74 | B77: ='Indtast resultat'!B21 -> Rosa Margrethe Vohs | C77: ='Indtast resultat'!A21 -> Augustenborg Skole 5A-2 | D77: ='Indtast resultat'!C21 -> 175 | E77: / | F77: ='Indtast resultat'!D21 -> 1
A78: 75 | B78: ='Indtast resultat'!B10 -> Mads | C78: ='Indtast resultat'!A9 -> Broager Skole 5C-1 | D78: ='Indtast resultat'!C10 -> 173 | E78: / | F78: ='Indtast resultat'!D10 -> 1
A79: 76 | B79: ='Indtast resultat'!B24 -> Alexander Krogh | C79: ='Indtast resultat'!A21 -> Augustenborg Skole 5A-2 | D79: ='Indtast resultat'!C24 -> 156 | E79: / | F79: ='Indtast resultat'!D24 -> 0
A80: 77 | B80: ='Indtast resultat'!B15 -> Isabella Juhler | C80: ='Indtast resultat'!A15 -> Nordals Skolen 5B-1 | D80: ='Indtast resultat'!C15 -> 0 | E80: / | F80: ='Indtast resultat'!D15 -> 0
A81: 78 | B81: ='Indtast resultat'!B16 -> Mikkel Kjær | C81: ='Indtast resultat'!A15 -> Nordals Skolen 5B-1 | D81: ='Indtast resultat'!C16 -> 0 | E81: / | F81: ='Indtast resultat'!D16 -> 0
A82: 79 | B82: ='Indtast resultat'!B17 -> Simon Eriksen | C82: ='Indtast resultat'!A15 -> Nordals Skolen 5B-1 | D82: ='Indtast resultat'!C17 -> 0 | E82: / | F82: ='Indtast resultat'!D17 -> 0
A83: 80 | B83: ='Indtast resultat'!B18 -> Isabella Kunstmann | C83: ='Indtast resultat'!A15 -> Nordals Skolen 5B-1 | D83: ='Indtast resultat'!C18 -> 0 | E83: / | F83: ='Indtast resultat'!D18 -> 0
A84: 81 | B84: ='Indtast resultat'!B45 -> Silke Uldall Nielsen | C84: ='Indtast resultat'!A45 -> Dybbøl Skolen 5A-1 | D84: ='Indtast resultat'!C45 -> 0 | E84: / | F84: ='Indtast resultat'!D45 -> 0
A85: 82 | B85: ='Indtast resultat'!B46 -> Alberte Sofie Benkjer | C85: ='Indtast resultat'!A45 -> Dybbøl Skolen 5A-1 | D85: ='Indtast resultat'!C46 -> 0 | E85: / | F85: ='Indtast resultat'!D46 -> 0
A86: 83 | B86: ='Indtast resultat'!B47 -> Julie Sørensen | C86: ='Indtast resultat'!A45 -> Dybbøl Skolen 5A-1 | D86: ='Indtast resultat'!C47 -> 0 | E86: / | F86: ='Indtast resultat'!D47 -> 0
A87: 84 | B87: ='Indtast resultat'!B48 -> Hjalte Asmussen | C87: ='Indtast resultat'!A45 -> Dybbøl Skolen 5A-1 | D87: ='Indtast resultat'!C48 -> 0 | E87: / | F87: ='Indtast resultat'!D48 -> 0
A88: 85 | B88: ='Indtast resultat'!B51 -> Madina M. Werner | C88: ='Indtast resultat'!A51 -> Friskolen Østerlund 5-1 | D88: ='Indtast resultat'!C51 -> 0 | E88: / | F88: ='Indtast resultat'!D51 -> 0
A89: 86 | B89: ='Indtast resultat'!B52 -> Aksel S. Jessen | C89: ='Indtast resultat'!A51 -> Friskolen Østerlund 5-1 | D89: ='Indtast resultat'!C52 -> 0 | E89: / | F89: ='Indtast resultat'!D52 -> 0
A90: 87 | B90: ='Indtast resultat'!B53 -> Dicte W. Jørgensen | C90: ='Indtast resultat'!A51 -> Friskolen Østerlund 5-1 | D90: ='Indtast resultat'!C53 -> 0 | E90: / | F90: ='Indtast resultat'!D53 -> 0
A91: 88 | B91: ='Indtast resultat'!B54 -> Ida M. Lorenzen | C91: ='Indtast resultat'!A51 -> Friskolen Østerlund 5-1 | D91: ='Indtast resultat'!C54 -> 0 | E91: / | F91: ='Indtast resultat'!D54 -> 0
A92: 89 | B92: ='Indtast resultat'!B135 -> Elev 1 | C92: ='Indtast resultat'!A135 -> Skole - Klasse - Hold | D92: ='Indtast resultat'!C135 -> 0 | E92: / | F92: ='Indtast resultat'!D135 -> 0
A93: 90 | B93: ='Indtast resultat'!B136 -> Elev 2 | C93: ='Indtast resultat'!A135 -> Skole - Klasse - Hold | D93: ='Indtast resultat'!C136 -> 0 | E93: / | F93: ='Indtast resultat'!D136 -> 0
A94: 91 | B94: ='Indtast resultat'!B137 -> Elev 3 | C94: ='Indtast resultat'!A135 -> Skole - Klasse - Hold | D94: ='Indtast resultat'!C137 -> 0 | E94: / | F94: ='Indtast resultat'!D137 -> 0
A95: 92 | B95: ='Indtast resultat'!B138 -> Elev 4 | C95: ='Indtast resultat'!A135 -> Skole - Klasse - Hold | D95: ='Indtast resultat'!C138 -> 0 | E95: / | F95: ='Indtast resultat'!D138 -> 0
A96: 93 | B96: ='Indtast resultat'!B141 -> Elev 1 | C96: ='Indtast resultat'!A141 -> Skole - Klasse - Hold | D96: ='Indtast resultat'!C141 -> 0 | E96: / | F96: ='Indtast resultat'!D141 -> 0
A97: 94 | B97: ='Indtast resultat'!B142 -> Elev 2 | C97: ='Indtast resultat'!A141 -> Skole - Klasse - Hold | D97: ='Indtast resultat'!C142 -> 0 | E97: / | F97: ='Indtast resultat'!D142 -> 0
A98: 95 | B98: ='Indtast resultat'!B143 -> Elev 3 | C98: ='Indtast resultat'!A141 -> Skole - Klasse - Hold | D98: ='Indtast resultat'!C143 -> 0 | E98: / | F98: ='Indtast resultat'!D143 -> 0
A99: 96 | B99: ='Indtast resultat'!B144 -> Elev 4 | C99: ='Indtast resultat'!A141 -> Skole - Klasse - Hold | D99: ='Indtast resultat'!C144 -> 0 | E99: / | F99: ='Indtast resultat'!D144 -> 0
A100: 97 | B100: ='Indtast resultat'!B147 -> Elev 1 | C100: ='Indtast resultat'!A147 -> Skole - Klasse - Hold | D100: ='Indtast resultat'!C147 -> 0 | E100: / | F100: ='Indtast resultat'!D147 -> 0
A101: 98 | B101: ='Indtast resultat'!B148 -> Elev 2 | C101: ='Indtast resultat'!A147 -> Skole - Klasse - Hold | D101: ='Indtast resultat'!C148 -> 0 | E101: / | F101: ='Indtast resultat'!D148 -> 0
A102: 99 | B102: ='Indtast resultat'!B149 -> Elev 3 | C102: ='Indtast resultat'!A147 -> Skole - Klasse - Hold | D102: ='Indtast resultat'!C149 -> 0 | E102: / | F102: ='Indtast resultat'!D149 -> 0
A103: 100 | B103: ='Indtast resultat'!B150 -> Elev 4 | C103: ='Indtast resultat'!A147 -> Skole - Klasse - Hold | D103: ='Indtast resultat'!C150 -> 0 | E103: / | F103: ='Indtast resultat'!D150 -> 0
A104: 101 | B104: ='Indtast resultat'!B153 -> Elev 1 | C104: ='Indtast resultat'!A153 -> Skole - Klasse - Hold | D104: ='Indtast resultat'!C153 -> 0 | E104: / | F104: ='Indtast resultat'!D153 -> 0
A105: 102 | B105: ='Indtast resultat'!B154 -> Elev 2 | C105: ='Indtast resultat'!A153 -> Skole - Klasse - Hold | D105: ='Indtast resultat'!C154 -> 0 | E105: / | F105: ='Indtast resultat'!D154 -> 0
A106: 103 | B106: ='Indtast resultat'!B155 -> Elev 3 | C106: ='Indtast resultat'!A153 -> Skole - Klasse - Hold | D106: ='Indtast resultat'!C155 -> 0 | E106: / | F106: ='Indtast resultat'!D155 -> 0
A107: 104 | B107: ='Indtast resultat'!B156 -> Elev 4 | C107: ='Indtast resultat'!A153 -> Skole - Klasse - Hold | D107: ='Indtast resultat'!C156 -> 0 | E107: / | F107: ='Indtast resultat'!D156 -> 0
A108: 105 | B108: ='Indtast resultat'!B159 -> Elev 1 | C108: ='Indtast resultat'!A159 -> Skole - Klasse - Hold | D108: ='Indtast resultat'!C159 -> 0 | E108: / | F108: ='Indtast resultat'!D159 -> 0
A109: 106 | B109: ='Indtast resultat'!B160 -> Elev 2 | C109: ='Indtast resultat'!A159 -> Skole - Klasse - Hold | D109: ='Indtast resultat'!C160 -> 0 | E109: / | F109: ='Indtast resultat'!D160 -> 0
A110: 107 | B110: ='Indtast resultat'!B161 -> Elev 3 | C110: ='Indtast resultat'!A159 -> Skole - Klasse - Hold | D110: ='Indtast resultat'!C161 -> 0 | E110: / | F110: ='Indtast resultat'!D161 -> 0
A111: 108 | B111: ='Indtast resultat'!B162 -> Elev 4 | C111: ='Indtast resultat'!A159 -> Skole - Klasse - Hold | D111: ='Indtast resultat'!C162 -> 0 | E111: / | F111: ='Indtast resultat'!D162 -> 0
A112: 109 | B112: ='Indtast resultat'!B165 -> Elev 1 | C112: ='Indtast resultat'!A165 -> Skole - Klasse - Hold | D112: ='Indtast resultat'!C165 -> 0 | E112: / | F112: ='Indtast resultat'!D165 -> 0
A113: 110 | B113: ='Indtast resultat'!B166 -> Elev 2 | C113: ='Indtast resultat'!A165 -> Skole - Klasse - Hold | D113: ='Indtast resultat'!C166 -> 0 | E113: / | F113: ='Indtast resultat'!D166 -> 0
A114: 111 | B114: ='Indtast resultat'!B167 -> Elev 3 | C114: ='Indtast resultat'!A165 -> Skole - Klasse - Hold | D114: ='Indtast resultat'!C167 -> 0 | E114: / | F114: ='Indtast resultat'!D167 -> 0
A115: 112 | B115: ='Indtast resultat'!B168 -> Elev 4 | C115: ='Indtast resultat'!A165 -> Skole - Klasse - Hold | D115: ='Indtast resultat'!C168 -> 0 | E115: / | F115: ='Indtast resultat'!D168 -> 0
A116: 113 | B116: ='Indtast resultat'!B171 -> Elev 1 | C116: ='Indtast resultat'!A171 -> Skole - Klasse - Hold | D116: ='Indtast resultat'!C171 -> 0 | E116: / | F116: ='Indtast resultat'!D171 -> 0
A117: 114 | B117: ='Indtast resultat'!B172 -> Elev 2 | C117: ='Indtast resultat'!A171 -> Skole - Klasse - Hold | D117: ='Indtast resultat'!C172 -> 0 | E117: / | F117: ='Indtast resultat'!D172 -> 0
A118: 115 | B118: ='Indtast resultat'!B173 -> Elev 3 | C118: ='Indtast resultat'!A171 -> Skole - Klasse - Hold | D118: ='Indtast resultat'!C173 -> 0 | E118: / | F118: ='Indtast resultat'!D173 -> 0
A119: 116 | B119: ='Indtast resultat'!B174 -> Elev 4 | C119: ='Indtast resultat'!A171 -> Skole - Klasse - Hold | D119: ='Indtast resultat'!C174 -> 0 | E119: / | F119: ='Indtast resultat'!D174 -> 0
A120: 117 | B120: ='Indtast resultat'!B177 -> Elev 1 | C120: ='Indtast resultat'!A177 -> Skole - Klasse - Hold | D120: ='Indtast resultat'!C177 -> 0 | E120: / | F120: ='Indtast resultat'!D177 -> 0
A121: 118 | B121: ='Indtast resultat'!B178 -> Elev 2 | C121: ='Indtast resultat'!A177 -> Skole - Klasse - Hold | D121: ='Indtast resultat'!C178 -> 0 | E121: / | F121: ='Indtast resultat'!D178 -> 0
A122: 119 | B122: ='Indtast resultat'!B179 -> Elev 3 | C122: ='Indtast resultat'!A177 -> Skole - Klasse - Hold | D122: ='Indtast resultat'!C179 -> 0 | E122: / | F122: ='Indtast resultat'!D179 -> 0
A123: 120 | B123: ='Indtast resultat'!B180 -> Elev 4 | C123: ='Indtast resultat'!A177 -> Skole - Klasse - Hold | D123: ='Indtast resultat'!C180 -> 0 | E123: / | F123: ='Indtast resultat'!D180 -> 0
A124: 121 | B124: ='Indtast resultat'!B183 -> Elev 1 | C124: ='Indtast resultat'!A183 -> Skole - Klasse - Hold | D124: ='Indtast resultat'!C183 -> 0 | E124: / | F124: ='Indtast resultat'!D183 -> 0
A125: 122 | B125: ='Indtast resultat'!B184 -> Elev 2 | C125: ='Indtast resultat'!A183 -> Skole - Klasse - Hold | D125: ='Indtast resultat'!C184 -> 0 | E125: / | F125: ='Indtast resultat'!D184 -> 0
A126: 123 | B126: ='Indtast resultat'!B185 -> Elev 3 | C126: ='Indtast resultat'!A183 -> Skole - Klasse - Hold | D126: ='Indtast resultat'!C185 -> 0 | E126: / | F126: ='Indtast resultat'!D185 -> 0
A127: 124 | B127: ='Indtast resultat'!B186 -> Elev 4 | C127: ='Indtast resultat'!A183 -> Skole - Klasse - Hold | D127: ='Indtast resultat'!C186 -> 0 | E127: / | F127: ='Indtast resultat'!D186 -> 0
A128: 125 | B128: ='Indtast resultat'!B189 -> Elev 1 | C128: ='Indtast resultat'!A189 -> Skole - Klasse - Hold | D128: ='Indtast resultat'!C189 -> 0 | E128: / | F128: ='Indtast resultat'!D189 -> 0
A129: 126 | B129: ='Indtast resultat'!B190 -> Elev 2 | C129: ='Indtast resultat'!A189 -> Skole - Klasse - Hold | D129: ='Indtast resultat'!C190 -> 0 | E129: / | F129: ='Indtast resultat'!D190 -> 0
A130: 127 | B130: ='Indtast resultat'!B191 -> Elev 3 | C130: ='Indtast resultat'!A189 -> Skole - Klasse - Hold | D130: ='Indtast resultat'!C191 -> 0 | E130: / | F130: ='Indtast resultat'!D191 -> 0
A131: 128 | B131: ='Indtast resultat'!B192 -> Elev 4 | C131: ='Indtast resultat'!A189 -> Skole - Klasse - Hold | D131: ='Indtast resultat'!C192 -> 0 | E131: / | F131: ='Indtast resultat'!D192 -> 0
A132: 129 | B132: ='Indtast resultat'!B195 -> Elev 1 | C132: ='Indtast resultat'!A195 -> Skole - Klasse - Hold | D132: ='Indtast resultat'!C195 -> 0 | E132: / | F132: ='Indtast resultat'!D195 -> 0
A133: 130 | B133: ='Indtast resultat'!B196 -> Elev 2 | C133: ='Indtast resultat'!A195 -> Skole - Klasse - Hold | D133: ='Indtast resultat'!C196 -> 0 | E133: / | F133: ='Indtast resultat'!D196 -> 0
A134: 131 | B134: ='Indtast resultat'!B197 -> Elev 3 | C134: ='Indtast resultat'!A195 -> Skole - Klasse - Hold | D134: ='Indtast resultat'!C197 -> 0 | E134: / | F134: ='Indtast resultat'!D197 -> 0
A135: 132 | B135: ='Indtast resultat'!B198 -> Elev 4 | C135: ='Indtast resultat'!A195 -> Skole - Klasse - Hold | D135: ='Indtast resultat'!C198 -> 0 | E135: / | F135: ='Indtast resultat'!D198 -> 0
A136: 133 | B136: ='Indtast resultat'!B201 -> Elev 1 | C136: ='Indtast resultat'!A201 -> Skole - Klasse - Hold | D136: ='Indtast resultat'!C201 -> 0 | E136: / | F136: ='Indtast resultat'!D201 -> 0
A137: 134 | B137: ='Indtast resultat'!B202 -> Elev 2 | C137: ='Indtast resultat'!A201 -> Skole - Klasse - Hold | D137: ='Indtast resultat'!C202 -> 0 | E137: / | F137: ='Indtast resultat'!D202 -> 0
A138: 135 | B138: ='Indtast resultat'!B203 -> Elev 3 | C138: ='Indtast resultat'!A201 -> Skole - Klasse - Hold | D138: ='Indtast resultat'!C203 -> 0 | E138: / | F138: ='Indtast resultat'!D203 -> 0
A139: 136 | B139: ='Indtast resultat'!B204 -> Elev 4 | C139: ='Indtast resultat'!A201 -> Skole - Klasse - Hold | D139: ='Indtast resultat'!C204 -> 0 | E139: / | F139: ='Indtast resultat'!D204 -> 0

Sheet Top3
A1: ="Skole DM i Skydning, Landsdelsfinale " &Setup!B5 & " Medaljetagere, " &Setup!B6 -> Skole DM i Skydning, Landsdelsfinale 2021 Medaljetagere, DGI Sønderjylland
A2: Guld
A3: Augustenborg Skole 5A-1
A4: Navn | B4: Skivenr | C4: Point | D4: / | E4: x
A5: Amanda Angelica Hansen | B5: 135601 | C5: 191 | D5: / | E5: 2
A6: Lea Raabe Jæger | B6: 135611 | C6: 186 | D6: / | E6: 1
A7: Sophia Rahr Semmelmann | B7: 135621 | C7: 194 | D7: / | E7: 7
A8: Sofie Kinastovski Wolff | B8: 135631 | C8: 191 | D8: / | E8: 4
A9: Midtals Skytteforening | B9: I alt | C9: 762 | D9: / | E9: 14
A10: DGI Sønderjylland | C10: Retur til "Indtast resultat"
A12: Sølv
A13: Broager Skole 5B-1
A14: Navn | B14: Skivenr | C14: Point | D14: / | E14: x
A15: Line Sofie Teichert Madsen | B15: 135161 | C15: 192 | D15: / | E15: 4
A16: Elias Helding Gandrup | B16: 135171 | C16: 186 | D16: / | E16: 0
A17: Shasmina Kalika | B17: 135181 | C17: 189 | D17: / | E17: 1
A18: Madicken Zahn Paulsen | B18: 135191 | C18: 189 | D18: / | E18: 3
A19: Broagerlands Skytteforening | B19: I alt | C19: 756 | D19: / | E19: 8
A20: DGI Sønderjylland | C20: Retur til "Indtast resultat"
A22: Bronze
A23: Skærbæk Realskole 5A-1
A24: Navn | B24: Skivenr | C24: Point | D24: / | E24: x
A25: Lasse Sørensen | B25: 135641 | C25: 183 | D25: / | E25: 0
A26: Casper Nissen | B26: 135651 | C26: 191 | D26: / | E26: 3
A27: Morten Vejrup | B27: 135661 | C27: 187 | D27: / | E27: 1
A28: Silke Petersen | B28: 135671 | C28: 195 | D28: / | E28: 3
A29: Sparta | B29: I alt | C29: 756 | D29: / | E29: 7
A30: DGI Sønderjylland | C30: Retur til "Indtast resultat"

Sheet Skydetid
A1: ="Skole DM i Skydning, Landsdelsfinale " &Setup!B5 -> Skole DM i Skydning, Landsdelsfinale 2021
A2: Holdoversigt, Skydetider
A3: Nr. | B3: Skole / Hold | C3: Kl | D3: / | E3: Bane
A4: 1 | B4: ='Indtast resultat'!A3 -> Svenstrup Friskole 5.-1 | D4: / | G4: 1110 | H4: / | I4: 2-5 | K4: 1145 | L4: / | M4: 2-5
A5: 2 | B5: ='Indtast resultat'!A9 -> Broager Skole 5C-1 | D5: / | G5: 1110 | H5: / | I5: 7-10 | K5: 1145 | L5: / | M5: 7-10
A6: 3 | B6: ='Indtast resultat'!A15 -> Nordals Skolen 5B-1 | D6: / | G6: 1110 | H6: / | I6: 12-15 | K6: 1145 | L6: / | M6: 12-15
A7: 4 | B7: ='Indtast resultat'!A21 -> Augustenborg Skole 5A-2 | D7: / | G7: 1110 | H7: / | I7: 16-19 | K7: 1145 | L7: / | M7: 16-19
A8: 5 | B8: ='Indtast resultat'!A27 -> Broager Skole 5B-1 | D8: / | G8: 1110 | H8: / | I8: 20-23 | K8: 1145 | L8: / | M8: 20-23
A9: 6 | B9: ='Indtast resultat'!A33 -> Oksbøl Friskole 5K-1 | D9: / | G9: 1110 | H9: / | I9: 24-27 | K9: 1145 | L9: / | M9: 24-27
A10: 7 | B10: ='Indtast resultat'!A39 -> Dybbøl Skolen 5B-1 | D10: / | G10: 1110 | H10: / | I10: 28-31 | K10: 1145 | L10: / | M10: 28-31
A11: 8 | B11: ='Indtast resultat'!A45 -> Dybbøl Skolen 5A-1 | D11: / | G11: 1110 | H11: / | I11: 32-35 | K11: 1145 | L11: / | M11: 32-35
A12: 9 | B12: ='Indtast resultat'!A51 -> Friskolen Østerlund 5-1 | D12: / | G12: 1110 | H12: / | I12: 37-40 | K12: 1145 | L12: / | M12: 37-40
A13: 10 | B13: ='Indtast resultat'!A57 -> Humlehøj Skolen 5A-1 | D13: / | G13: 1110 | H13: / | I13: 44-48 | K13: 1145 | L13: / | M13: 44-48
A14: 11 | B14: ='Indtast resultat'!A63 -> Ahlmann Skolen 5A-1 | D14: / | G14: 1110 | H14: / | I14: 49-52 | K14: 1145 | L14: / | M14: 49-52
A15: 12 | B15: ='Indtast resultat'!A69 -> Augustenborg Skole 5B-2 | D15: / | G15: 1110 | H15: / | I15: 53-56 | K15: 1145 | L15: / | M15: 53-56
A16: 13 | B16: ='Indtast resultat'!A75 -> Gråsten Skole 5B-1 | D16: / | G16: 1110 | H16: / | I16: 57-60 | K16: 1145 | L16: / | M16: 57-60
A17: 14 | B17: ='Indtast resultat'!A81 -> Dybbøl Skolen 5D-1 | D17: / | G17: 1110 | H17: / | I17: 62-65 | K17: 1145 | L17: / | M17: 62-65
A18: 15 | B18: ='Indtast resultat'!A87 -> Oksbøl Friskole 5M-1 | D18: / | G18: 1110 | H18: / | I18: 66-69 | K18: 1145 | L18: / | M18: 66-69
A19: 16 | B19: ='Indtast resultat'!A93 -> Augustenborg Skole 5A-1 | D19: / | G19: 1110 | H19: / | I19: 70-73 | K19: 1145 | L19: / | M19: 70-73
A20: 17 | B20: ='Indtast resultat'!A99 -> Skærbæk Realskole 5A-1 | D20: / | G20: 1110 | H20: / | K20: 1145 | L20: /
A21: 18 | B21: ='Indtast resultat'!A105 -> Dybbøl Skolen 5C-1 | D21: /
A22: 19 | B22: ='Indtast resultat'!A111 -> Augustenborg Skole 5B-1 | D22: /
A23: 20 | B23: ='Indtast resultat'!A117 -> Digeskolen 5H-1 | D23: /
A24: 21 | B24: ='Indtast resultat'!A123 -> Gråsten Skole 5A-1 | D24: /
A25: 22 | B25: ='Indtast resultat'!A129 -> Skærbæk Distriksskole 5A-1 | D25: /
A26: 23 | B26: ='Indtast resultat'!A135 -> Skole - Klasse - Hold | D26: /
A27: 24 | B27: ='Indtast resultat'!A141 -> Skole - Klasse - Hold | D27: /
A28: 25 | B28: ='Indtast resultat'!A147 -> Skole - Klasse - Hold | D28: /
A29: 26 | B29: ='Indtast resultat'!A153 -> Skole - Klasse - Hold | D29: /
A30: 27 | B30: ='Indtast resultat'!A159 -> Skole - Klasse - Hold | D30: /
A31: 28 | B31: ='Indtast resultat'!A165 -> Skole - Klasse - Hold | D31: /
A32: 29 | B32: ='Indtast resultat'!A171 -> Skole - Klasse - Hold | D32: /
A33: 30 | B33: ='Indtast resultat'!A177 -> Skole - Klasse - Hold | D33: /
A34: 31 | B34: ='Indtast resultat'!A183 -> Skole - Klasse - Hold | D34: /
A35: 32 | B35: ='Indtast resultat'!A189 -> Skole - Klasse - Hold | D35: /
A36: 33 | B36: ='Indtast resultat'!A195 -> Skole - Klasse - Hold | D36: /
A37: 34 | B37: ='Indtast resultat'!A201 -> Skole - Klasse - Hold | D37: /

Sheet Finale (hidden)
C1: Skole DM i Skydning - Finale 2019
C2: DGI Skydning | D2: Indledende | G2: Finale | J2: Total
C3: Dansk Skoleidræt | D3: Point | E3: / | F3: x | G3: Point | H3: / | I3: x | J3: Point | K3: / | L3: x | M3: 5 | O3: 10 | Q3: 15 | S3: 20 | U3: 25 | W3: 30 | Y3: 35 | AA3: 40 | AC3: 45 | AE3: 50 | AG3: 55 | AI3: 60 | AK3: 65 | AM3: 70 | AO3: 75 | AQ3: 80
B4: =RANK(AS4,AS$4:AS$11) -> 1 | C4: Skole 1 | E4: / | G4: =M4+O4+Q4+S4+U4+W4+Y4+AA4+AC4+AE4+AG4+AI4+AK4+AM4+AO4+AQ4 -> 0 | H4: / | I4: =N4+P4+R4+T4+V4+X4+Z4+AB4+AD4+AF4+AH4+AJ4+AL4+AN4+AP4+AR4 -> 0 | J4: =G4+D4 -> 0 | K4: / | L4: =I4+F4 -> 0 | AS4: =J4+L4/1000 -> 0
B5: 1 | C5: Skole 2 | E5: / | G5: =M5+O5+Q5+S5+U5+W5+Y5+AA5+AC5+AE5+AG5+AI5+AK5+AM5+AO5+AQ5 -> 0 | H5: / | I5: =N5+P5+R5+T5+V5+X5+Z5+AB5+AD5+AF5+AH5+AJ5+AL5+AN5+AP5+AR5 -> 0 | J5: =G5+D5 -> 0 | K5: / | L5: =I5+F5 -> 0 | AS5: 0
B6: 1 | C6: Skole 3 | E6: / | G6: 0 | H6: / | I6: 0 | J6: 0 | K6: / | L6: 0 | AS6: 0
B7: 1 | C7: Skole 4 | E7: / | G7: 0 | H7: / | I7: 0 | J7: 0 | K7: / | L7: 0 | AS7: 0
B8: 1 | C8: Skole 5 | E8: / | G8: 0 | H8: / | I8: 0 | J8: 0 | K8: / | L8: 0 | AS8: 0
B9: 1 | C9: Skole 6 | E9: / | G9: =M9+O9+Q9+S9+U9+W9+Y9+AA9+AC9+AE9+AG9+AI9+AK9+AM9+AO9+AQ9 -> 0 | H9: / | I9: =N9+P9+R9+T9+V9+X9+Z9+AB9+AD9+AF9+AH9+AJ9+AL9+AN9+AP9+AR9 -> 0 | J9: =G9+D9 -> 0 | K9: / | L9: =I9+F9 -> 0 | AS9: 0
B10: 1 | C10: Skole 7 | E10: / | G10: =M10+O10+Q10+S10+U10+W10+Y10+AA10+AC10+AE10+AG10+AI10+AK10+AM10+AO10+AQ10 -> 0 | H10: / | I10: =N10+P10+R10+T10+V10+X10+Z10+AB10+AD10+AF10+AH10+AJ10+AL10+AN10+AP10+AR10 -> 0 | J10: =G10+D10 -> 0 | K10: / | L10: =I10+F10 -> 0 | AS10: 0
B11: 1 | C11: Skole 8 | E11: / | G11: =M11+O11+Q11+S11+U11+W11+Y11+AA11+AC11+AE11+AG11+AI11+AK11+AM11+AO11+AQ11 -> 0 | H11: / | I11: =N11+P11+R11+T11+V11+X11+Z11+AB11+AD11+AF11+AH11+AJ11+AL11+AN11+AP11+AR11 -> 0 | J11: =G11+D11 -> 0 | K11: / | L11: =I11+F11 -> 0 | AS11: 0

Sheet 01
A1: ='Indtast resultat'!A3 -> Svenstrup Friskole 5.-1
A2: Navn | B2: Skivenr | C2: Point | D2: / | E2: x
A3: ='Indtast resultat'!B3 -> Luca Schmidt | B3: ='Indtast resultat'!E3 -> 135001 | C3: ='Indtast resultat'!C3 -> 191 | D3: / | E3: ='Indtast resultat'!D3 -> 4
A4: ='Indtast resultat'!B4 -> Albert Jørgensen | B4: ='Indtast resultat'!E4 -> 135011 | C4: ='Indtast resultat'!C4 -> 186 | D4: / | E4: ='Indtast resultat'!D4 -> 1
A5: ='Indtast resultat'!B5 -> Jacob Alberts | B5: ='Indtast resultat'!E5 -> 135021 | C5: ='Indtast resultat'!C5 -> 186 | D5: / | E5: ='Indtast resultat'!D5 -> 0
A6: ='Indtast resultat'!B6 -> Frederikke Clausen | B6: ='Indtast resultat'!E6 -> 135031 | C6: ='Indtast resultat'!C6 -> 180 | D6: / | E6: ='Indtast resultat'!D6 -> 2
A7: ='Indtast resultat'!A4 -> Svenstrup Skytteforening | B7: I alt | C7: ='Indtast resultat'!C7 -> 743 | D7: / | E7: ='Indtast resultat'!D7 -> 7
A8: ='Indtast resultat'!A5 -> DGI Sønderjylland | C8: Retur til "Indtast resultat"

Sheet 02
A1: ='Indtast resultat'!A9 -> Broager Skole 5C-1
A2: Navn | B2: Skivenr | C2: Point | D2: / | E2: x
A3: ='Indtast resultat'!B9 -> Ida | B3: ='Indtast resultat'!E9 -> 135041 | C3: ='Indtast resultat'!C9 -> 180 | D3: / | E3: ='Indtast resultat'!D9 -> 0
A4: ='Indtast resultat'!B10 -> Mads | B4: ='Indtast resultat'!E10 -> 135051 | C4: ='Indtast resultat'!C10 -> 173 | D4: / | E4: ='Indtast resultat'!D10 -> 1
A5: ='Indtast resultat'!B11 -> Freja | B5: ='Indtast resultat'!E11 -> 135061 | C5: ='Indtast resultat'!C11 -> 189 | D5: / | E5: ='Indtast resultat'!D11 -> 2
A6: ='Indtast resultat'!B12 -> William | B6: ='Indtast resultat'!E12 -> 135071 | C6: ='Indtast resultat'!C12 -> 177 | D6: / | E6: ='Indtast resultat'!D12 -> 0
A7: ='Indtast resultat'!A10 -> Broagerlands Skytteforening | B7: I alt | C7: ='Indtast resultat'!C13 -> 719 | D7: / | E7: ='Indtast resultat'!D13 -> 3
A8: ='Indtast resultat'!A11 -> DGI Sønderjylland | C8: Retur til "Indtast resultat"

Sheet 03
A1: ='Indtast resultat'!A15 -> Nordals Skolen 5B-1
A2: Navn | B2: Skivenr | C2: Point | D2: / | E2: x
A3: ='Indtast resultat'!B15 -> Isabella Juhler | B3: ='Indtast resultat'!E15 -> 135081 | C3: ='Indtast resultat'!C15 -> 0 | D3: / | E3: ='Indtast resultat'!D15 -> 0
A4: ='Indtast resultat'!B16 -> Mikkel Kjær | B4: ='Indtast resultat'!E16 -> 135091 | C4: ='Indtast resultat'!C16 -> 0 | D4: / | E4: ='Indtast resultat'!D16 -> 0
A5: ='Indtast resultat'!B17 -> Simon Eriksen | B5: ='Indtast resultat'!E17 -> 135101 | C5: ='Indtast resultat'!C17 -> 0 | D5: / | E5: ='Indtast resultat'!D17 -> 0
A6: ='Indtast resultat'!B18 -> Isabella Kunstmann | B6: ='Indtast resultat'!E18 -> 135111 | C6: ='Indtast resultat'!C18 -> 0 | D6: / | E6: ='Indtast resultat'!D18 -> 0
A7: ='Indtast resultat'!A16 -> Nordals Skyttekreds | B7: I alt | C7: ='Indtast resultat'!C19 -> 0 | D7: / | E7: ='Indtast resultat'!D19 -> 0
A8: ='Indtast resultat'!A17 -> DGI Sønderjylland | C8: Retur til "Indtast resultat"

Sheet 04
A1: ='Indtast resultat'!A21 -> Augustenborg Skole 5A-2
A2: Navn | B2: Skivenr | C2: Point | D2: / | E2: x
A3: ='Indtast resultat'!B21 -> Rosa Margrethe Vohs | B3: ='Indtast resultat'!E21 -> 135121 | C3: ='Indtast resultat'!C21 -> 175 | D3: / | E3: ='Indtast resultat'!D21 -> 1
A4: ='Indtast resultat'!B22 -> Mathias Franke Andersen | B4: ='Indtast resultat'!E22 -> 135131 | C4: ='Indtast resultat'!C22 -> 188 | D4: / | E4: ='Indtast resultat'!D22 -> 0
A5: ='Indtast resultat'!B23 -> Ida Karstensen Nielsen | B5: ='Indtast resultat'!E23 -> 135141 | C5: ='Indtast resultat'!C23 -> 176 | D5: / | E5: ='Indtast resultat'!D23 -> 1
A6: ='Indtast resultat'!B24 -> Alexander Krogh | B6: ='Indtast resultat'!E24 -> 135151 | C6: ='Indtast resultat'!C24 -> 156 | D6: / | E6: ='Indtast resultat'!D24 -> 0
A7: ='Indtast resultat'!A22 -> Midtals Skytteforening | B7: I alt | C7: ='Indtast resultat'!C25 -> 695 | D7: / | E7: ='Indtast resultat'!D25 -> 2
A8: ='Indtast resultat'!A23 -> DGI Sønderjylland | C8: Retur til "Indtast resultat"

Sheet 05
A1: ='Indtast resultat'!A27 -> Broager Skole 5B-1
A2: Navn | B2: Skivenr | C2: Point | D2: / | E2: x
A3: ='Indtast resultat'!B27 -> Line Sofie Teichert Madsen | B3: ='Indtast resultat'!E27 -> 135161 | C3: ='Indtast resultat'!C27 -> 192 | D3: / | E3: ='Indtast resultat'!D27 -> 4
A4: ='Indtast resultat'!B28 -> Elias Helding Gandrup | B4: ='Indtast resultat'!E28 -> 135171 | C4: ='Indtast resultat'!C28 -> 186 | D4: / | E4: ='Indtast resultat'!D28 -> 0
A5: ='Indtast resultat'!B29 -> Shasmina Kalika | B5: ='Indtast resultat'!E29 -> 135181 | C5: ='Indtast resultat'!C29 -> 189 | D5: / | E5: ='Indtast resultat'!D29 -> 1
A6: ='Indtast resultat'!B30 -> Madicken Zahn Paulsen | B6: ='Indtast resultat'!E30 -> 135191 | C6: ='Indtast resultat'!C30 -> 189 | D6: / | E6: ='Indtast resultat'!D30 -> 3
A7: ='Indtast resultat'!A28 -> Broagerlands Skytteforening | B7: I alt | C7: ='Indtast resultat'!C31 -> 756 | D7: / | E7: ='Indtast resultat'!D31 -> 8
A8: ='Indtast resultat'!A29 -> DGI Sønderjylland | C8: Retur til "Indtast resultat"

Sheet 06
A1: ='Indtast resultat'!A33 -> Oksbøl Friskole 5K-1
A2: Navn | B2: Skivenr | C2: Point | D2: / | E2: x
A3: ='Indtast resultat'!B33 -> Sofie Hansen | B3: ='Indtast resultat'!E33 -> 135201 | C3: ='Indtast resultat'!C33 -> 186 | D3: / | E3: ='Indtast resultat'!D33 -> 0
A4: ='Indtast resultat'!B34 -> Lukas Schink Hansen | B4: ='Indtast resultat'!E34 -> 135211 | C4: ='Indtast resultat'!C34 -> 181 | D4: / | E4: ='Indtast resultat'!D34 -> 2
A5: ='Indtast resultat'!B35 -> Peter Hvid | B5: ='Indtast resultat'!E35 -> 135221 | C5: ='Indtast resultat'!C35 -> 186 | D5: / | E5: ='Indtast resultat'!D35 -> 2
A6: ='Indtast resultat'!B36 -> Klara Poulsen Kristensen | B6: ='Indtast resultat'!E36 -> 135231 | C6: ='Indtast resultat'!C36 -> 183 | D6: / | E6: ='Indtast resultat'!D36 -> 1
A7: ='Indtast resultat'!A34 -> Nordals Skyttekreds | B7: I alt | C7: ='Indtast resultat'!C37 -> 736 | D7: / | E7: ='Indtast resultat'!D37 -> 5
A8: ='Indtast resultat'!A35 -> DGI Sønderjylland | C8: Retur til "Indtast resultat"

Sheet 07
A1: ='Indtast resultat'!A39 -> Dybbøl Skolen 5B-1
A2: Navn | B2: Skivenr | C2: Point | D2: / | E2: x
A3: ='Indtast resultat'!B39 -> Luna Kejser Jensen | B3: ='Indtast resultat'!E39 -> 135241 | C3: ='Indtast resultat'!C39 -> 189 | D3: / | E3: ='Indtast resultat'!D39 -> 2
A4: ='Indtast resultat'!B40 -> Kaisa Spilling | B4: ='Indtast resultat'!E40 -> 135251 | C4: ='Indtast resultat'!C40 -> 184 | D4: / | E4: ='Indtast resultat'!D40 -> 1
A5: ='Indtast resultat'!B41 -> Oliver Lundbjeg Bidstrup | B5: ='Indtast resultat'!E41 -> 135261 | C5: ='Indtast resultat'!C41 -> 184 | D5: / | E5: ='Indtast resultat'!D41 -> 2
A6: ='Indtast resultat'!B42 -> Victoria Møller Böhlers | B6: ='Indtast resultat'!E42 -> 135271 | C6: ='Indtast resultat'!C42 -> 190 | D6: / | E6: ='Indtast resultat'!D42 -> 3
A7: ='Indtast resultat'!A40 -> Sønderborg Skyttekreds | B7: I alt | C7: ='Indtast resultat'!C43 -> 747 | D7: / | E7: ='Indtast resultat'!D43 -> 8
A8: ='Indtast resultat'!A41 -> DGI Sønderjylland | C8: Retur til "Indtast resultat"

Sheet 08
A1: ='Indtast resultat'!A45 -> Dybbøl Skolen 5A-1
A2: Navn | B2: Skivenr | C2: Point | D2: / | E2: x
A3: ='Indtast resultat'!B45 -> Silke Uldall Nielsen | B3: ='Indtast resultat'!E45 -> 135281 | C3: ='Indtast resultat'!C45 -> 0 | D3: / | E3: ='Indtast resultat'!D45 -> 0
A4: ='Indtast resultat'!B46 -> Alberte Sofie Benkjer | B4: ='Indtast resultat'!E46 -> 135291 | C4: ='Indtast resultat'!C46 -> 0 | D4: / | E4: ='Indtast resultat'!D46 -> 0
A5: ='Indtast resultat'!B47 -> Julie Sørensen | B5: ='Indtast resultat'!E47 -> 135301 | C5: ='Indtast resultat'!C47 -> 0 | D5: / | E5: ='Indtast resultat'!D47 -> 0
A6: ='Indtast resultat'!B48 -> Hjalte Asmussen | B6: ='Indtast resultat'!E48 -> 135311 | C6: ='Indtast resultat'!C48 -> 0 | D6: / | E6: ='Indtast resultat'!D48 -> 0
A7: ='Indtast resultat'!A46 -> Sønderborg Skyttekreds | B7: I alt | C7: ='Indtast resultat'!C49 -> 0 | D7: / | E7: ='Indtast resultat'!D49 -> 0
A8: ='Indtast resultat'!A47 -> DGI Sønderjylland | C8: Retur til "Indtast resultat"

Sheet 09
A1: ='Indtast resultat'!A51 -> Friskolen Østerlund 5-1
A2: Navn | B2: Skivenr | C2: Point | D2: / | E2: x
A3: ='Indtast resultat'!B51 -> Madina M. Werner | B3: ='Indtast resultat'!E51 -> 135321 | C3: ='Indtast resultat'!C51 -> 0 | D3: / | E3: ='Indtast resultat'!D51 -> 0
A4: ='Indtast resultat'!B52 -> Aksel S. Jessen | B4: ='Indtast resultat'!E52 -> 135331 | C4: ='Indtast resultat'!C52 -> 0 | D4: / | E4: ='Indtast resultat'!D52 -> 0
A5: ='Indtast resultat'!B53 -> Dicte W. Jørgensen | B5: ='Indtast resultat'!E53 -> 135341 | C5: ='Indtast resultat'!C53 -> 0 | D5: / | E5: ='Indtast resultat'!D53 -> 0
A6: ='Indtast resultat'!B54 -> Ida M. Lorenzen | B6: ='Indtast resultat'!E54 -> 135351 | C6: ='Indtast resultat'!C54 -> 0 | D6: / | E6: ='Indtast resultat'!D54 -> 0
A7: ='Indtast resultat'!A52 -> Midtals Skytteforening | B7: I alt | C7: ='Indtast resultat'!C55 -> 0 | D7: / | E7: ='Indtast resultat'!D55 -> 0
A8: ='Indtast resultat'!A53 -> DGI Sønderjylland | C8: Retur til "Indtast resultat"

Sheet 10
A1: ='Indtast resultat'!A57 -> Humlehøj Skolen 5A-1
A2: Navn | B2: Skivenr | C2: Point | D2: / | E2: x
A3: ='Indtast resultat'!B57 -> Josefine Frisk Christensen | B3: ='Indtast resultat'!E57 -> 135361 | C3: ='Indtast resultat'!C57 -> 198 | D3: / | E3: ='Indtast resultat'!D57 -> 4
A4: ='Indtast resultat'!B58 -> Mathilde Uhrskov Lundgreen | B4: ='Indtast resultat'!E58 -> 135371 | C4: ='Indtast resultat'!C58 -> 184 | D4: / | E4: ='Indtast resultat'!D58 -> 2
A5: ='Indtast resultat'!B59 -> Camille Fick Johannsen | B5: ='Indtast resultat'!E59 -> 135381 | C5: ='Indtast resultat'!C59 -> 187 | D5: / | E5: ='Indtast resultat'!D59 -> 2
A6: ='Indtast resultat'!B60 -> Silas Loose Tinnesen | B6: ='Indtast resultat'!E60 -> 135391 | C6: ='Indtast resultat'!C60 -> 186 | D6: / | E6: ='Indtast resultat'!D60 -> 2
A7: ='Indtast resultat'!A58 -> Sønderborg Skyttekreds | B7: I alt | C7: ='Indtast resultat'!C61 -> 755 | D7: / | E7: ='Indtast resultat'!D61 -> 10
A8: ='Indtast resultat'!A59 -> DGI Sønderjylland | C8: Retur til "Indtast resultat"

Sheet 11
A1: ='Indtast resultat'!A63 -> Ahlmann Skolen 5A-1
A2: Navn | B2: Skivenr | C2: Point | D2: / | E2: x
A3: ='Indtast resultat'!B63 -> Johanna Bjerrum | B3: ='Indtast resultat'!E63 -> 135401 | C3: ='Indtast resultat'!C63 -> 187 | D3: / | E3: ='Indtast resultat'!D63 -> 2
A4: ='Indtast resultat'!B64 -> Mimi Lyngkilde Clausen | B4: ='Indtast resultat'!E64 -> 135411 | C4: ='Indtast resultat'!C64 -> 185 | D4: / | E4: ='Indtast resultat'!D64 -> 4
A5: ='Indtast resultat'!B65 -> Viola Seeberg Haurum | B5: ='Indtast resultat'!E65 -> 135421 | C5: ='Indtast resultat'!C65 -> 181 | D5: / | E5: ='Indtast resultat'!D65 -> 1
A6: ='Indtast resultat'!B66 -> Mille Jozefowicz | B6: ='Indtast resultat'!E66 -> 135431 | C6: ='Indtast resultat'!C66 -> 182 | D6: / | E6: ='Indtast resultat'!D66 -> 1
A7: ='Indtast resultat'!A64 -> Sønderborg Skyttekreds | B7: I alt | C7: ='Indtast resultat'!C67 -> 735 | D7: / | E7: ='Indtast resultat'!D67 -> 8
A8: ='Indtast resultat'!A65 -> DGI Sønderjylland | C8: Retur til "Indtast resultat"

Sheet 12
A1: ='Indtast resultat'!A69 -> Augustenborg Skole 5B-2
A2: Navn | B2: Skivenr | C2: Point | D2: / | E2: x
A3: ='Indtast resultat'!B69 -> Loke Uduak Skov Christensen | B3: ='Indtast resultat'!E69 -> 135441 | C3: ='Indtast resultat'!C69 -> 190 | D3: / | E3: ='Indtast resultat'!D69 -> 6
A4: ='Indtast resultat'!B70 -> Maja Vonsild Jensen | B4: ='Indtast resultat'!E70 -> 135451 | C4: ='Indtast resultat'!C70 -> 188 | D4: / | E4: ='Indtast resultat'!D70 -> 4
A5: ='Indtast resultat'!B71 -> Nicolai Hadberg | B5: ='Indtast resultat'!E71 -> 135461 | C5: ='Indtast resultat'!C71 -> 187 | D5: / | E5: ='Indtast resultat'!D71 -> 0
A6: ='Indtast resultat'!B72 -> Louiza Kaluzny-Jarrov | B6: ='Indtast resultat'!E72 -> 135471 | C6: ='Indtast resultat'!C72 -> 186 | D6: / | E6: ='Indtast resultat'!D72 -> 1
A7: ='Indtast resultat'!A70 -> Midtals Skytteforening | B7: I alt | C7: ='Indtast resultat'!C73 -> 751 | D7: / | E7: ='Indtast resultat'!D73 -> 11
A8: ='Indtast resultat'!A71 -> DGI Sønderjylland | C8: Retur til "Indtast resultat"

Sheet 13
A1: ='Indtast resultat'!A75 -> Gråsten Skole 5B-1
A2: Navn | B2: Skivenr | C2: Point | D2: / | E2: x
A3: ='Indtast resultat'!B75 -> Mille Laus Vollertsen | B3: ='Indtast resultat'!E75 -> 135481 | C3: ='Indtast resultat'!C75 -> 187 | D3: / | E3: ='Indtast resultat'!D75 -> 4
A4: ='Indtast resultat'!B76 -> Patrick Good Hollænder | B4: ='Indtast resultat'!E76 -> 135491 | C4: ='Indtast resultat'!C76 -> 183 | D4: / | E4: ='Indtast resultat'!D76 -> 1
A5: ='Indtast resultat'!B77 -> Nanna Brogaard Roth | B5: ='Indtast resultat'!E77 -> 135501 | C5: ='Indtast resultat'!C77 -> 191 | D5: / | E5: ='Indtast resultat'!D77 -> 1
A6: ='Indtast resultat'!B78 -> Lars Heissel | B6: ='Indtast resultat'!E78 -> 135511 | C6: ='Indtast resultat'!C78 -> 187 | D6: / | E6: ='Indtast resultat'!D78 -> 2
A7: ='Indtast resultat'!A76 -> Gråsten Skytteforening | B7: I alt | C7: ='Indtast resultat'!C79 -> 748 | D7: / | E7: ='Indtast resultat'!D79 -> 8
A8: ='Indtast resultat'!A77 -> DGI Sønderjylland | C8: Retur til "Indtast resultat"

Sheet 14
A1: ='Indtast resultat'!A81 -> Dybbøl Skolen 5D-1
A2: Navn | B2: Skivenr | C2: Point | D2: / | E2: x
A3: ='Indtast resultat'!B81 -> Liv Gregersen Elmer | B3: ='Indtast resultat'!E81 -> 135521 | C3: ='Indtast resultat'!C81 -> 181 | D3: / | E3: ='Indtast resultat'!D81 -> 1
A4: ='Indtast resultat'!B82 -> Jones Hansen | B4: ='Indtast resultat'!E82 -> 135531 | C4: ='Indtast resultat'!C82 -> 189 | D4: / | E4: ='Indtast resultat'!D82 -> 1
A5: ='Indtast resultat'!B83 -> Frida Kou Jensen | B5: ='Indtast resultat'!E83 -> 135541 | C5: ='Indtast resultat'!C83 -> 186 | D5: / | E5: ='Indtast resultat'!D83 -> 2
A6: ='Indtast resultat'!B84 -> Victoria Benedikte Grum Kjærgaard | B6: ='Indtast resultat'!E84 -> 135551 | C6: ='Indtast resultat'!C84 -> 189 | D6: / | E6: ='Indtast resultat'!D84 -> 3
A7: ='Indtast resultat'!A82 -> Sønderborg Skyttekreds | B7: I alt | C7: ='Indtast resultat'!C85 -> 745 | D7: / | E7: ='Indtast resultat'!D85 -> 7
A8: ='Indtast resultat'!A83 -> DGI Sønderjylland | C8: Retur til "Indtast resultat"

Sheet 15
A1: ='Indtast resultat'!A87 -> Oksbøl Friskole 5M-1
A2: Navn | B2: Skivenr | C2: Point | D2: / | E2: x
A3: ='Indtast resultat'!B87 -> Celine Jungquist Christensen | B3: ='Indtast resultat'!E87 -> 135561 | C3: ='Indtast resultat'!C87 -> 186 | D3: / | E3: ='Indtast resultat'!D87 -> 0
A4: ='Indtast resultat'!B88 -> Laura Kjærgaard | B4: ='Indtast resultat'!E88 -> 135571 | C4: ='Indtast resultat'!C88 -> 180 | D4: / | E4: ='Indtast resultat'!D88 -> 1
A5: ='Indtast resultat'!B89 -> Sascha Møller Abrahamsen | B5: ='Indtast resultat'!E89 -> 135581 | C5: ='Indtast resultat'!C89 -> 187 | D5: / | E5: ='Indtast resultat'!D89 -> 0
A6: ='Indtast resultat'!B90 -> Layla Clausen | B6: ='Indtast resultat'!E90 -> 135591 | C6: ='Indtast resultat'!C90 -> 192 | D6: / | E6: ='Indtast resultat'!D90 -> 2
A7: ='Indtast resultat'!A88 -> Nordals Skyttekreds | B7: I alt | C7: ='Indtast resultat'!C91 -> 745 | D7: / | E7: ='Indtast resultat'!D91 -> 3
A8: ='Indtast resultat'!A89 -> DGI Sønderjylland | C8: Retur til "Indtast resultat"

Sheet 16
A1: ='Indtast resultat'!A93 -> Augustenborg Skole 5A-1
A2: Navn | B2: Skivenr | C2: Point | D2: / | E2: x
A3: ='Indtast resultat'!B93 -> Amanda Angelica Hansen | B3: ='Indtast resultat'!E93 -> 135601 | C3: ='Indtast resultat'!C93 -> 191 | D3: / | E3: ='Indtast resultat'!D93 -> 2
A4: ='Indtast resultat'!B94 -> Lea Raabe Jæger | B4: ='Indtast resultat'!E94 -> 135611 | C4: ='Indtast resultat'!C94 -> 186 | D4: / | E4: ='Indtast resultat'!D94 -> 1
A5: ='Indtast resultat'!B95 -> Sophia Rahr Semmelmann | B5: ='Indtast resultat'!E95 -> 135621 | C5: ='Indtast resultat'!C95 -> 194 | D5: / | E5: ='Indtast resultat'!D95 -> 7
A6: ='Indtast resultat'!B96 -> Sofie Kinastovski Wolff | B6: ='Indtast resultat'!E96 -> 135631 | C6: ='Indtast resultat'!C96 -> 191 | D6: / | E6: ='Indtast resultat'!D96 -> 4
A7: ='Indtast resultat'!A94 -> Midtals Skytteforening | B7: I alt | C7: ='Indtast resultat'!C97 -> 762 | D7: / | E7: ='Indtast resultat'!D97 -> 14
A8: ='Indtast resultat'!A95 -> DGI Sønderjylland | C8: Retur til "Indtast resultat"

Sheet 17
A1: ='Indtast resultat'!A99 -> Skærbæk Realskole 5A-1
A2: Navn | B2: Skivenr | C2: Point | D2: / | E2: x
A3: ='Indtast resultat'!B99 -> Lasse Sørensen | B3: ='Indtast resultat'!E99 -> 135641 | C3: ='Indtast resultat'!C99 -> 183 | D3: / | E3: ='Indtast resultat'!D99 -> 0
A4: ='Indtast resultat'!B100 -> Casper Nissen | B4: ='Indtast resultat'!E100 -> 135651 | C4: ='Indtast resultat'!C100 -> 191 | D4: / | E4: ='Indtast resultat'!D100 -> 3
A5: ='Indtast resultat'!B101 -> Morten Vejrup | B5: ='Indtast resultat'!E101 -> 135661 | C5: ='Indtast resultat'!C101 -> 187 | D5: / | E5: ='Indtast resultat'!D101 -> 1
A6: ='Indtast resultat'!B102 -> Silke Petersen | B6: ='Indtast resultat'!E102 -> 135671 | C6: ='Indtast resultat'!C102 -> 195 | D6: / | E6: ='Indtast resultat'!D102 -> 3
A7: ='Indtast resultat'!A100 -> Sparta | B7: I alt | C7: ='Indtast resultat'!C103 -> 756 | D7: / | E7: ='Indtast resultat'!D103 -> 7
A8: ='Indtast resultat'!A101 -> DGI Sønderjylland | C8: Retur til "Indtast resultat"

Sheet 18
A1: ='Indtast resultat'!A105 -> Dybbøl Skolen 5C-1
A2: Navn | B2: Skivenr | C2: Point | D2: / | E2: x
A3: ='Indtast resultat'!B105 -> Kathrine Holm Østergaard | B3: ='Indtast resultat'!E105 -> 135681 | C3: ='Indtast resultat'!C105 -> 186 | D3: / | E3: ='Indtast resultat'!D105 -> 3
A4: ='Indtast resultat'!B106 -> Said Mohammed Mosleh | B4: ='Indtast resultat'!E106 -> 135691 | C4: ='Indtast resultat'!C106 -> 180 | D4: / | E4: ='Indtast resultat'!D106 -> 1
A5: ='Indtast resultat'!B107 -> Eliza Anna Andreasen | B5: ='Indtast resultat'!E107 -> 135701 | C5: ='Indtast resultat'!C107 -> 189 | D5: / | E5: ='Indtast resultat'!D107 -> 1
A6: ='Indtast resultat'!B108 -> Sofia Lykkeø Enggaard | B6: ='Indtast resultat'!E108 -> 135711 | C6: ='Indtast resultat'!C108 -> 185 | D6: / | E6: ='Indtast resultat'!D108 -> 2
A7: ='Indtast resultat'!A106 -> Sønderborg Skyttekreds | B7: I alt | C7: ='Indtast resultat'!C109 -> 740 | D7: / | E7: ='Indtast resultat'!D109 -> 7
A8: ='Indtast resultat'!A107 -> DGI Sønderjylland | C8: Retur til "Indtast resultat"

Sheet 19
A1: ='Indtast resultat'!A111 -> Augustenborg Skole 5B-1
A2: Navn | B2: Skivenr | C2: Point | D2: / | E2: x
A3: ='Indtast resultat'!B111 -> Emma Bramvel Blaudzun | B3: ='Indtast resultat'!E111 -> 135841 | C3: ='Indtast resultat'!C111 -> 185 | D3: / | E3: ='Indtast resultat'!D111 -> 3
A4: ='Indtast resultat'!B112 -> Lærke Bak | B4: ='Indtast resultat'!E112 -> 135851 | C4: ='Indtast resultat'!C112 -> 187 | D4: / | E4: ='Indtast resultat'!D112 -> 2
A5: ='Indtast resultat'!B113 -> Mathilde Plehn | B5: ='Indtast resultat'!E113 -> 135861 | C5: ='Indtast resultat'!C113 -> 191 | D5: / | E5: ='Indtast resultat'!D113 -> 4
A6: ='Indtast resultat'!B114 -> Silje Lindberg Lorenzen | B6: ='Indtast resultat'!E114 -> 135871 | C6: ='Indtast resultat'!C114 -> 190 | D6: / | E6: ='Indtast resultat'!D114 -> 4
A7: ='Indtast resultat'!A112 -> Midtals Skytteforening | B7: I alt | C7: ='Indtast resultat'!C115 -> 753 | D7: / | E7: ='Indtast resultat'!D115 -> 13
A8: ='Indtast resultat'!A113 -> DGI Sønderjylland | C8: Retur til "Indtast resultat"

Sheet 20
A1: ='Indtast resultat'!A117 -> Digeskolen 5H-1
A2: Navn | B2: Skivenr | C2: Point | D2: / | E2: x
A3: ='Indtast resultat'!B117 -> Ida Marie Petersen | B3: ='Indtast resultat'!E117 -> 135881 | C3: ='Indtast resultat'!C117 -> 183 | D3: / | E3: ='Indtast resultat'!D117 -> 1
A4: ='Indtast resultat'!B118 -> Line Skovgaard | B4: ='Indtast resultat'!E118 -> 135891 | C4: ='Indtast resultat'!C118 -> 190 | D4: / | E4: ='Indtast resultat'!D118 -> 2
A5: ='Indtast resultat'!B119 -> Bertram Teglskov | B5: ='Indtast resultat'!E119 -> 135901 | C5: ='Indtast resultat'!C119 -> 188 | D5: / | E5: ='Indtast resultat'!D119 -> 3
A6: ='Indtast resultat'!B120 -> Rasmus Andresen | B6: ='Indtast resultat'!E120 -> 135911 | C6: ='Indtast resultat'!C120 -> 191 | D6: / | E6: ='Indtast resultat'!D120 -> 1
A7: ='Indtast resultat'!A118 -> Sparta | B7: I alt | C7: ='Indtast resultat'!C121 -> 752 | D7: / | E7: ='Indtast resultat'!D121 -> 7
A8: ='Indtast resultat'!A119 -> DGI Sønderjylland | C8: Retur til "Indtast resultat"

Sheet 21
A1: ='Indtast resultat'!A123 -> Gråsten Skole 5A-1
A2: Navn | B2: Skivenr | C2: Point | D2: / | E2: x
A3: ='Indtast resultat'!B123 -> Marie Pedersen | B3: ='Indtast resultat'!E123 -> 135921 | C3: ='Indtast resultat'!C123 -> 194 | D3: / | E3: ='Indtast resultat'!D123 -> 5
A4: ='Indtast resultat'!B124 -> Philip Bossen | B4: ='Indtast resultat'!E124 -> 135931 | C4: ='Indtast resultat'!C124 -> 188 | D4: / | E4: ='Indtast resultat'!D124 -> 3
A5: ='Indtast resultat'!B125 -> Iben Nissen | B5: ='Indtast resultat'!E125 -> 135941 | C5: ='Indtast resultat'!C125 -> 187 | D5: / | E5: ='Indtast resultat'!D125 -> 2
A6: ='Indtast resultat'!B126 -> Nikola Malocha | B6: ='Indtast resultat'!E126 -> 135951 | C6: ='Indtast resultat'!C126 -> 180 | D6: / | E6: ='Indtast resultat'!D126 -> 4
A7: ='Indtast resultat'!A124 -> Gråsten Skytteforening | B7: I alt | C7: ='Indtast resultat'!C127 -> 749 | D7: / | E7: ='Indtast resultat'!D127 -> 14
A8: ='Indtast resultat'!A125 -> DGI Sønderjylland | C8: Retur til "Indtast resultat"

Sheet 22
A1: ='Indtast resultat'!A129 -> Skærbæk Distriksskole 5A-1
A2: Navn | B2: Skivenr | C2: Point | D2: / | E2: x
A3: ='Indtast resultat'!B129 -> Oskar Jørgensen | B3: ='Indtast resultat'!E129 -> 135961 | C3: ='Indtast resultat'!C129 -> 182 | D3: / | E3: ='Indtast resultat'!D129 -> 2
A4: ='Indtast resultat'!B130 -> Mads Olesen | B4: ='Indtast resultat'!E130 -> 135971 | C4: ='Indtast resultat'!C130 -> 188 | D4: / | E4: ='Indtast resultat'!D130 -> 5
A5: ='Indtast resultat'!B131 -> Emil Thomasen | B5: ='Indtast resultat'!E131 -> 135981 | C5: ='Indtast resultat'!C131 -> 187 | D5: / | E5: ='Indtast resultat'!D131 -> 2
A6: ='Indtast resultat'!B132 -> Maja Petersen | B6: ='Indtast resultat'!E132 -> 135991 | C6: ='Indtast resultat'!C132 -> 196 | D6: / | E6: ='Indtast resultat'!D132 -> 5
A7: ='Indtast resultat'!A130 -> Sparta | B7: I alt | C7: ='Indtast resultat'!C133 -> 753 | D7: / | E7: ='Indtast resultat'!D133 -> 14
A8: ='Indtast resultat'!A131 -> DGI Sønderjylland | C8: Retur til "Indtast resultat"

Sheet 23
A1: ='Indtast resultat'!A135 -> Skole - Klasse - Hold
A2: Navn | B2: Skivenr | C2: Point | D2: / | E2: x
A3: ='Indtast resultat'!B135 -> Elev 1 | B3: ='Indtast resultat'!E135 -> 136001 | C3: ='Indtast resultat'!C135 -> 0 | D3: / | E3: ='Indtast resultat'!D135 -> 0
A4: ='Indtast resultat'!B136 -> Elev 2 | B4: ='Indtast resultat'!E136 -> 136011 | C4: ='Indtast resultat'!C136 -> 0 | D4: / | E4: ='Indtast resultat'!D136 -> 0
A5: ='Indtast resultat'!B137 -> Elev 3 | B5: ='Indtast resultat'!E137 -> 136021 | C5: ='Indtast resultat'!C137 -> 0 | D5: / | E5: ='Indtast resultat'!D137 -> 0
A6: ='Indtast resultat'!B138 -> Elev 4 | B6: ='Indtast resultat'!E138 -> 136031 | C6: ='Indtast resultat'!C138 -> 0 | D6: / | E6: ='Indtast resultat'!D138 -> 0
A7: ='Indtast resultat'!A136 -> Forening | B7: I alt | C7: ='Indtast resultat'!C139 -> 0 | D7: / | E7: ='Indtast resultat'!D139 -> 0
A8: ='Indtast resultat'!A137 -> DGI Sønderjylland | C8: Retur til "Indtast resultat"

Sheet 24
A1: ='Indtast resultat'!A141 -> Skole - Klasse - Hold
A2: Navn | B2: Skivenr | C2: Point | D2: / | E2: x
A3: ='Indtast resultat'!B141 -> Elev 1 | B3: ='Indtast resultat'!E141 -> 136041 | C3: ='Indtast resultat'!C141 -> 0 | D3: / | E3: ='Indtast resultat'!D141 -> 0
A4: ='Indtast resultat'!B142 -> Elev 2 | B4: ='Indtast resultat'!E142 -> 136051 | C4: ='Indtast resultat'!C142 -> 0 | D4: / | E4: ='Indtast resultat'!D142 -> 0
A5: ='Indtast resultat'!B143 -> Elev 3 | B5: ='Indtast resultat'!E143 -> 136061 | C5: ='Indtast resultat'!C143 -> 0 | D5: / | E5: ='Indtast resultat'!D143 -> 0
A6: ='Indtast resultat'!B144 -> Elev 4 | B6: ='Indtast resultat'!E144 -> 136071 | C6: ='Indtast resultat'!C144 -> 0 | D6: / | E6: ='Indtast resultat'!D144 -> 0
A7: ='Indtast resultat'!A142 -> Forening | B7: I alt | C7: ='Indtast resultat'!C145 -> 0 | D7: / | E7: ='Indtast resultat'!D145 -> 0
A8: ='Indtast resultat'!A143 -> DGI Sønderjylland | C8: Retur til "Indtast resultat"

Sheet 25
A1: ='Indtast resultat'!A147 -> Skole - Klasse - Hold
A2: Navn | B2: Skivenr | C2: Point | D2: / | E2: x
A3: ='Indtast resultat'!B147 -> Elev 1 | B3: ='Indtast resultat'!E147 -> 136081 | C3: ='Indtast resultat'!C147 -> 0 | D3: / | E3: ='Indtast resultat'!D147 -> 0
A4: ='Indtast resultat'!B148 -> Elev 2 | B4: ='Indtast resultat'!E148 -> 136091 | C4: ='Indtast resultat'!C148 -> 0 | D4: / | E4: ='Indtast resultat'!D148 -> 0
A5: ='Indtast resultat'!B149 -> Elev 3 | B5: ='Indtast resultat'!E149 -> 136101 | C5: ='Indtast resultat'!C149 -> 0 | D5: / | E5: ='Indtast resultat'!D149 -> 0
A6: ='Indtast resultat'!B150 -> Elev 4 | B6: ='Indtast resultat'!E150 -> 136111 | C6: ='Indtast resultat'!C150 -> 0 | D6: / | E6: ='Indtast resultat'!D150 -> 0
A7: ='Indtast resultat'!A148 -> Forening | B7: I alt | C7: ='Indtast resultat'!C151 -> 0 | D7: / | E7: ='Indtast resultat'!D151 -> 0
A8: ='Indtast resultat'!A149 -> DGI Sønderjylland | C8: Retur til "Indtast resultat"

Sheet 26
A1: ='Indtast resultat'!A153 -> Skole - Klasse - Hold
A2: Navn | B2: Skivenr | C2: Point | D2: / | E2: x
A3: ='Indtast resultat'!B153 -> Elev 1 | B3: ='Indtast resultat'!E153 -> 136121 | C3: ='Indtast resultat'!C153 -> 0 | D3: / | E3: ='Indtast resultat'!D153 -> 0
A4: ='Indtast resultat'!B154 -> Elev 2 | B4: ='Indtast resultat'!E154 -> 136131 | C4: ='Indtast resultat'!C154 -> 0 | D4: / | E4: ='Indtast resultat'!D154 -> 0
A5: ='Indtast resultat'!B155 -> Elev 3 | B5: ='Indtast resultat'!E155 -> 136141 | C5: ='Indtast resultat'!C155 -> 0 | D5: / | E5: ='Indtast resultat'!D155 -> 0
A6: ='Indtast resultat'!B156 -> Elev 4 | B6: ='Indtast resultat'!E156 -> 136151 | C6: ='Indtast resultat'!C156 -> 0 | D6: / | E6: ='Indtast resultat'!D156 -> 0
A7: ='Indtast resultat'!A154 -> Forening | B7: I alt | C7: ='Indtast resultat'!C157 -> 0 | D7: / | E7: ='Indtast resultat'!D157 -> 0
A8: ='Indtast resultat'!A155 -> DGI Sønderjylland | C8: Retur til "Indtast resultat"

Sheet 27
A1: ='Indtast resultat'!A159 -> Skole - Klasse - Hold
A2: Navn | B2: Skivenr | C2: Point | D2: / | E2: x
A3: ='Indtast resultat'!B159 -> Elev 1 | B3: ='Indtast resultat'!E159 -> 136161 | C3: ='Indtast resultat'!C159 -> 0 | D3: / | E3: ='Indtast resultat'!D159 -> 0
A4: ='Indtast resultat'!B160 -> Elev 2 | B4: ='Indtast resultat'!E160 -> 136171 | C4: ='Indtast resultat'!C160 -> 0 | D4: / | E4: ='Indtast resultat'!D160 -> 0
A5: ='Indtast resultat'!B161 -> Elev 3 | B5: ='Indtast resultat'!E161 -> 136181 | C5: ='Indtast resultat'!C161 -> 0 | D5: / | E5: ='Indtast resultat'!D161 -> 0
A6: ='Indtast resultat'!B162 -> Elev 4 | B6: ='Indtast resultat'!E162 -> 136191 | C6: ='Indtast resultat'!C162 -> 0 | D6: / | E6: ='Indtast resultat'!D162 -> 0
A7: ='Indtast resultat'!A160 -> Forening | B7: I alt | C7: ='Indtast resultat'!C163 -> 0 | D7: / | E7: ='Indtast resultat'!D163 -> 0
A8: ='Indtast resultat'!A161 -> DGI Sønderjylland | C8: Retur til "Indtast resultat"

Sheet 28
A1: ='Indtast resultat'!A165 -> Skole - Klasse - Hold
A2: Navn | B2: Skivenr | C2: Point | D2: / | E2: x
A3: ='Indtast resultat'!B165 -> Elev 1 | B3: ='Indtast resultat'!E165 -> 136201 | C3: ='Indtast resultat'!C165 -> 0 | D3: / | E3: ='Indtast resultat'!D165 -> 0
A4: ='Indtast resultat'!B166 -> Elev 2 | B4: ='Indtast resultat'!E166 -> 136211 | C4: ='Indtast resultat'!C166 -> 0 | D4: / | E4: ='Indtast resultat'!D166 -> 0
A5: ='Indtast resultat'!B167 -> Elev 3 | B5: ='Indtast resultat'!E167 -> 136221 | C5: ='Indtast resultat'!C167 -> 0 | D5: / | E5: ='Indtast resultat'!D167 -> 0
A6: ='Indtast resultat'!B168 -> Elev 4 | B6: ='Indtast resultat'!E168 -> 136231 | C6: ='Indtast resultat'!C168 -> 0 | D6: / | E6: ='Indtast resultat'!D168 -> 0
A7: ='Indtast resultat'!A166 -> Forening | B7: I alt | C7: ='Indtast resultat'!C169 -> 0 | D7: / | E7: ='Indtast resultat'!D169 -> 0
A8: ='Indtast resultat'!A167 -> DGI Sønderjylland | C8: Retur til "Indtast resultat"

Sheet 29
A1: ='Indtast resultat'!A171 -> Skole - Klasse - Hold
A2: Navn | B2: Skivenr | C2: Point | D2: / | E2: x
A3: ='Indtast resultat'!B171 -> Elev 1 | B3: ='Indtast resultat'!E171 -> 136241 | C3: ='Indtast resultat'!C171 -> 0 | D3: / | E3: ='Indtast resultat'!D171 -> 0
A4: ='Indtast resultat'!B172 -> Elev 2 | B4: ='Indtast resultat'!E172 -> 136251 | C4: ='Indtast resultat'!C172 -> 0 | D4: / | E4: ='Indtast resultat'!D172 -> 0
A5: ='Indtast resultat'!B173 -> Elev 3 | B5: ='Indtast resultat'!E173 -> 136261 | C5: ='Indtast resultat'!C173 -> 0 | D5: / | E5: ='Indtast resultat'!D173 -> 0
A6: ='Indtast resultat'!B174 -> Elev 4 | B6: ='Indtast resultat'!E174 -> 136271 | C6: ='Indtast resultat'!C174 -> 0 | D6: / | E6: ='Indtast resultat'!D174 -> 0
A7: ='Indtast resultat'!A172 -> Forening | B7: I alt | C7: ='Indtast resultat'!C175 -> 0 | D7: / | E7: ='Indtast resultat'!D175 -> 0
A8: ='Indtast resultat'!A173 -> DGI Sønderjylland | C8: Retur til "Indtast resultat"

Sheet 30
A1: ='Indtast resultat'!A177 -> Skole - Klasse - Hold
A2: Navn | B2: Skivenr | C2: Point | D2: / | E2: x
A3: ='Indtast resultat'!B177 -> Elev 1 | B3: ='Indtast resultat'!E177 -> 136281 | C3: ='Indtast resultat'!C177 -> 0 | D3: / | E3: ='Indtast resultat'!D177 -> 0
A4: ='Indtast resultat'!B178 -> Elev 2 | B4: ='Indtast resultat'!E178 -> 136291 | C4: ='Indtast resultat'!C178 -> 0 | D4: / | E4: ='Indtast resultat'!D178 -> 0
A5: ='Indtast resultat'!B179 -> Elev 3 | B5: ='Indtast resultat'!E179 -> 136301 | C5: ='Indtast resultat'!C179 -> 0 | D5: / | E5: ='Indtast resultat'!D179 -> 0
A6: ='Indtast resultat'!B180 -> Elev 4 | B6: ='Indtast resultat'!E180 -> 136311 | C6: ='Indtast resultat'!C180 -> 0 | D6: / | E6: ='Indtast resultat'!D180 -> 0
A7: ='Indtast resultat'!A178 -> Forening | B7: I alt | C7: ='Indtast resultat'!C181 -> 0 | D7: / | E7: ='Indtast resultat'!D181 -> 0
A8: ='Indtast resultat'!A179 -> DGI Sønderjylland | C8: Retur til "Indtast resultat"

Sheet 31
A1: ='Indtast resultat'!A183 -> Skole - Klasse - Hold
A2: Navn | B2: Skivenr | C2: Point | D2: / | E2: x
A3: ='Indtast resultat'!B183 -> Elev 1 | B3: ='Indtast resultat'!E183 -> 136321 | C3: ='Indtast resultat'!C183 -> 0 | D3: / | E3: ='Indtast resultat'!D183 -> 0
A4: ='Indtast resultat'!B184 -> Elev 2 | B4: ='Indtast resultat'!E184 -> 136331 | C4: ='Indtast resultat'!C184 -> 0 | D4: / | E4: ='Indtast resultat'!D184 -> 0
A5: ='Indtast resultat'!B185 -> Elev 3 | B5: ='Indtast resultat'!E185 -> 136341 | C5: ='Indtast resultat'!C185 -> 0 | D5: / | E5: ='Indtast resultat'!D185 -> 0
A6: ='Indtast resultat'!B186 -> Elev 4 | B6: ='Indtast resultat'!E186 -> 136351 | C6: ='Indtast resultat'!C186 -> 0 | D6: / | E6: ='Indtast resultat'!D186 -> 0
A7: ='Indtast resultat'!A184 -> Forening | B7: I alt | C7: ='Indtast resultat'!C187 -> 0 | D7: / | E7: ='Indtast resultat'!D187 -> 0
A8: ='Indtast resultat'!A185 -> DGI Sønderjylland | C8: Retur til "Indtast resultat"

Sheet 32
A1: ='Indtast resultat'!A189 -> Skole - Klasse - Hold
A2: Navn | B2: Skivenr | C2: Point | D2: / | E2: x
A3: ='Indtast resultat'!B189 -> Elev 1 | B3: ='Indtast resultat'!E189 -> 136361 | C3: ='Indtast resultat'!C189 -> 0 | D3: / | E3: ='Indtast resultat'!D189 -> 0
A4: ='Indtast resultat'!B190 -> Elev 2 | B4: ='Indtast resultat'!E190 -> 136371 | C4: ='Indtast resultat'!C190 -> 0 | D4: / | E4: ='Indtast resultat'!D190 -> 0
A5: ='Indtast resultat'!B191 -> Elev 3 | B5: ='Indtast resultat'!E191 -> 136381 | C5: ='Indtast resultat'!C191 -> 0 | D5: / | E5: ='Indtast resultat'!D191 -> 0
A6: ='Indtast resultat'!B192 -> Elev 4 | B6: ='Indtast resultat'!E192 -> 136391 | C6: ='Indtast resultat'!C192 -> 0 | D6: / | E6: ='Indtast resultat'!D192 -> 0
A7: ='Indtast resultat'!A190 -> Forening | B7: I alt | C7: ='Indtast resultat'!C193 -> 0 | D7: / | E7: ='Indtast resultat'!D193 -> 0
A8: ='Indtast resultat'!A191 -> DGI Sønderjylland | C8: Retur til "Indtast resultat"

Sheet 33
A1: ='Indtast resultat'!A195 -> Skole - Klasse - Hold
A2: Navn | B2: Skivenr | C2: Point | D2: / | E2: x
A3: ='Indtast resultat'!B195 -> Elev 1 | B3: ='Indtast resultat'!E195 -> 136401 | C3: ='Indtast resultat'!C195 -> 0 | D3: / | E3: ='Indtast resultat'!D195 -> 0
A4: ='Indtast resultat'!B196 -> Elev 2 | B4: ='Indtast resultat'!E196 -> 136411 | C4: ='Indtast resultat'!C196 -> 0 | D4: / | E4: ='Indtast resultat'!D196 -> 0
A5: ='Indtast resultat'!B197 -> Elev 3 | B5: ='Indtast resultat'!E197 -> 136421 | C5: ='Indtast resultat'!C197 -> 0 | D5: / | E5: ='Indtast resultat'!D197 -> 0
A6: ='Indtast resultat'!B198 -> Elev 4 | B6: ='Indtast resultat'!E198 -> 136431 | C6: ='Indtast resultat'!C198 -> 0 | D6: / | E6: ='Indtast resultat'!D198 -> 0
A7: ='Indtast resultat'!A196 -> Forening | B7: I alt | C7: ='Indtast resultat'!C199 -> 0 | D7: / | E7: ='Indtast resultat'!D199 -> 0
A8: ='Indtast resultat'!A197 -> DGI Sønderjylland | C8: Retur til "Indtast resultat"

Sheet 34
A1: ='Indtast resultat'!A201 -> Skole - Klasse - Hold
A2: Navn | B2: Skivenr | C2: Point | D2: / | E2: x
A3: ='Indtast resultat'!B201 -> Elev 1 | B3: ='Indtast resultat'!E201 -> 136441 | C3: ='Indtast resultat'!C201 -> 0 | D3: / | E3: ='Indtast resultat'!D201 -> 0
A4: ='Indtast resultat'!B202 -> Elev 2 | B4: ='Indtast resultat'!E202 -> 136451 | C4: ='Indtast resultat'!C202 -> 0 | D4: / | E4: ='Indtast resultat'!D202 -> 0
A5: ='Indtast resultat'!B203 -> Elev 3 | B5: ='Indtast resultat'!E203 -> 136461 | C5: ='Indtast resultat'!C203 -> 0 | D5: / | E5: ='Indtast resultat'!D203 -> 0
A6: ='Indtast resultat'!B204 -> Elev 4 | B6: ='Indtast resultat'!E204 -> 136471 | C6: ='Indtast resultat'!C204 -> 0 | D6: / | E6: ='Indtast resultat'!D204 -> 0
A7: ='Indtast resultat'!A202 -> Forening | B7: I alt | C7: ='Indtast resultat'!C205 -> 0 | D7: / | E7: ='Indtast resultat'!D205 -> 0
A8: ='Indtast resultat'!A203 -> DGI Sønderjylland | C8: Retur til "Indtast resultat"

Sheet 35
A1: ='Indtast resultat'!A207 -> 0
A2: Navn | B2: Skivenr | C2: Point | D2: / | E2: x
A3: ='Indtast resultat'!B207 -> 0 | B3: ='Indtast resultat'!E207 -> 0 | C3: ='Indtast resultat'!C207 -> 0 | D3: / | E3: ='Indtast resultat'!D207 -> 0
A4: ='Indtast resultat'!B208 -> 0 | B4: ='Indtast resultat'!E208 -> 0 | C4: ='Indtast resultat'!C208 -> 0 | D4: / | E4: ='Indtast resultat'!D208 -> 0
A5: ='Indtast resultat'!B209 -> 0 | B5: ='Indtast resultat'!E209 -> 0 | C5: ='Indtast resultat'!C209 -> 0 | D5: / | E5: ='Indtast resultat'!D209 -> 0
A6: ='Indtast resultat'!B210 -> 0 | B6: ='Indtast resultat'!E210 -> 0 | C6: ='Indtast resultat'!C210 -> 0 | D6: / | E6: ='Indtast resultat'!D210 -> 0
A7: ='Indtast resultat'!A208 -> 0 | B7: I alt | C7: ='Indtast resultat'!C211 -> 0 | D7: / | E7: ='Indtast resultat'!D211 -> 0
A8: ='Indtast resultat'!A209 -> 0 | C8: Retur til "Indtast resultat"

Sheet old2new (hidden)
A1: Skole/hold (1) | B1: Navn | C1: Point | D1: x
A2: Kongerslev Skole - 5a - 3 | B2: Marie Guldbæk Larsen | C2: 189 | D2: 4
A3: Mou & Omegens Skytteforening | B3: Rasmus Nielsen | C3: 193 | D3: 6
A4: DGI Nordjylland | B4: Ida Rosenkilde Sloth | C4: 192 | D4: 3
A5: Christian Schou | B5: Lasse Kjærsgaard Jensen | C5: 189 | D5: 0
A6: oasen@schou.mail.dk
A7: Skole/hold (2) | B7: Navn | C7: Point | D7: x
A8: Vester Hassing Skole - 5a - 1 | B8: Niels Taunsig Juulsgaard | C8: 192 | D8: 6
A9: Vester Hassing Skytteforening | B9: Johanne Ringgren Axelsen | C9: 192 | D9: 7
A10: DGI Nordjylland | B10: Lea Østergaard Larsen | C10: 185 | D10: 2
A11: Torben Klit Andersen | B11: Frida Bach Nielsen | C11: 189 | D11: 3
A12: tka.skytten@outlook.com
A13: Skole/hold (3) | B13: Navn | C13: Point | D13: x
A14: Kongerslev Skole - 5a - 2 | B14: Naima Christensen | C14: 186 | D14: 1
A15: Mou & Omegens Skytteforening | B15: Emilie S. Andersen | C15: 193 | D15: 4
A16: DGI Nordjylland | B16: Jonas Gregersen | C16: 196 | D16: 6
A17: Christian Schou | B17: Josefine Pedersen | C17: 186 | D17: 1
A18: oasen@schou.mail.dk
A19: Skole/hold (4) | B19: Navn | C19: Point | D19: x
A20: Højmarkskole - 5a - 1 | B20: Tobias Laursen | C20: 188 | D20: 1
A21: Højmark Skytteforening | B21: Jeppe Agger | C21: 189 | D21: 4
A22: DGI Vestjylland | B22: Johanne Pedersen | C22: 189 | D22: 0
A23: Holger Kold | B23: Sarah Laursen | C23: 190 | D23: 4
A24: koldholger@gmail.com
A25: Skole/hold (5) | B25: Navn | C25: Point | D25: x
A26: Stauning Skole - 5a - 1 | B26: Andreas Andresen | C26: 194 | D26: 4
A27: Skjern Skytteforening | B27: Jeppe Aarup | C27: 191 | D27: 3
A28: DGI Vestjylland | B28: Noah Agerbo | C28: 192 | D28: 4
A29: Birthe Vinther | B29: Victoria Ebbesen | C29: 191 | D29: 5
A30: bev@skjern-net.dk
A31: Skole/hold (6) | B31: Navn | C31: Point | D31: x
A32: Ringkøbing Skole - 5b - 1 | B32: Malua Bøgel Pedersen | C32: 185 | D32: 2
A33: Ringkøbing & Omegns Firmaidræt | B33: Solomiia Khamyha | C33: 189 | D33: 2
A34: DGI Vestjylland | B34: Benedikte Fisker | C34: 193 | D34: 6
A35: Jan Thorsted | B35: Noah T. Vedsted | C35: 187 | D35: 0
A36: jan_t@sport.dk
A37: Skole/hold (7) | B37: Navn | C37: Point | D37: x
A38: Ulbjerg Skole - 5a - 1 | B38: Sissel Præstgaard Madsen | C38: 193 | D38: 3
A39: Ulbjerg Skytteforening | B39: Rikke Mai Stigsen Bech | C39: 194 | D39: 1
A40: DGI Midtjylland | B40: Oliver Møller Trans | C40: 199 | D40: 11
A41: Ulla Rasmussen | B41: Frederik Gloggengiehser | C41: 187 | D41: 1
A42: ulras@mail.dk
A43: Skole/hold (8) | B43: Navn | C43: Point | D43: x
A44: Arnborg Skole - 5a - 1 | B44: Sarah Hamborg | C44: 189 | D44: 3
A45: Arnborg IF´s Skytteafdeling | B45: Malthe Ottesen | C45: 191 | D45: 2
A46: DGI Midtjylland | B46: Terese Kolster | C46: 189 | D46: 2
A47: Christine Grgersen | B47: Frederik Dyrlund | C47: 174 | D47: 0
A48: gregersen2@mail.dk
A49: Skole/hold (9) | B49: Navn | C49: Point | D49: x
A50: Frisholm Skole - 5a - 1 | B50: Simon Graversgaard Christensen | C50: 190 | D50: 2
A51: Them Skytteforening | B51: Tobias Frank | C51: 190 | D51: 2
A52: DGI Midtjylland | B52: Alberte Olesen | C52: 185 | D52: 2
A53: Jens Kjær | B53: Benjamin Carlsen | C53: 193 | D53: 2
A54: lisbeth.kjaer@jubii.dk
A55: Skole/hold (10) | B55: Navn | C55: Point | D55: x
A56: Onsbjerg Lilleskole - 5a - 1 | B56: Sinuhe Mondrup | C56: 197 | D56: 5
A57: Samsø Skytteforening | B57: Friis Wiese | C57: 193 | D57: 4
A58: DGI Østjylland | B58: Isabella Jensen | C58: 194 | D58: 5
A59: Jenny Bissø | B59: Freja Vinter Jensen | C59: 189 | D59: 1
A60: dalen6@samsoe.com
A61: Skole/hold (11) | B61: Navn | C61: Point | D61: x
A62: Samsø Skole - 5a - 1 | B62: Benjamin Frisk | C62: 195 | D62: 6
A63: Samsø Skytteforening | B63: Frederik Vilhelmsen | C63: 193 | D63: 5
A64: DGI Østjylland | B64: Sofus B. Jørgensen | C64: 195 | D64: 6
A65: Jenny Bissø | B65: Lukas Jensen | C65: 189 | D65: 2
A66: dalen6@samsoe.com
A67: Skole/hold (12) | B67: Navn | C67: Point | D67: x
A68: Samsø Friskole - 5a - 1 | B68: Mikael Holm | C68: 190 | D68: 3
A69: Samsø Skytteforening | B69: Liv Petersen | C69: 195 | D69: 4
A70: DGI Østjylland | B70: Niels Kjeldahl | C70: 185 | D70: 2
A71: Jenny Bissø | B71: Villads Larsen | C71: 192 | D71: 1
A72: dalen6@samsoe.com
A73: Skole/hold (13) | B73: Navn | C73: Point | D73: x
A74: Ullerup Bæk skolen afd. Skolesvinget - 5 - 1 | B74: Asger G. Jensen | C74: 198 | D74: 8
A75: Bredstrup Pjedsted Skytteforening | B75: Felix H. Storm | C75: 191 | D75: 5
A76: DGI Sydøstjylland | B76: Freja K. Andersen | C76: 191 | D76: 4
A77: Kurt Overgaard | B77: Laura L. Jensen | C77: 187 | D77: 3
A78: elbokrogen9@gmail.com
A79: Skole/hold (14) | B79: Navn | C79: Point | D79: x
A80: Skjoldborgsvejens Skole - 5c - 1 | B80: Wesal Jamal | C80: 186 | D80: 1
A81: Fredericia Skytteforening | B81: Frederikke Nielsen | C81: 195 | D81: 5
A82: DGI Sydøstjylland | B82: Ian Varst | C82: 186 | D82: 1
A83: Aksel Ebbesen | B83: Alexander Dueholm | C83: 188 | D83: 0
A84: formand@fredericia-skytteforening.dk
A85: Skole/hold (15) | B85: Navn | C85: Point | D85: x
A86: Ejstrupholm Skole - 5 - 1 | B86: Daniyil Grekov | C86: 185 | D86: 2
A87: Ejstrupholm Jagt- & Skytteforening | B87: Dicte Jørgensen | C87: 191 | D87: 3
A88: DGI Sydøstjylland | B88: Maria Eriksen | C88: 190 | D88: 2
A89: Andreas Adeler | B89: Mattilde Skærlund | C89: 190 | D89: 3
A90: andreas@adeler.no
A91: Skole/hold (16) | B91: Navn | C91: Point | D91: x
A92: Spangsbergskole - 5a - 1 | B92: Sofie Tanggaard Schütt | C92: 197 | D92: 6
A93: Esbjerg Skyttekreds | B93: Sofine E. G. D. Sejr | C93: 185 | D93: 1
A94: DGI Sydvest | B94: Anne Kathrine Knak | C94: 189 | D94: 2
A95: Poul Jørgensen | B95: Emil Keller | C95: 184 | D95: 0
A97: Skole/hold (17) | B97: Navn | C97: Point | D97: x
A98: Nordenskov Skole - 5a - 1 | B98: Danija Broka | C98: 196 | D98: 6
A99: Helle Skytteforening | B99: Pernille M. Laustrup | C99: 190 | D99: 1
A100: DGI Sydvest | B100: Leonora H. Lorenzen | C100: 193 | D100: 5
A101: Ingrid Hauge | B101: Mie B. Schmidt | C101: 189 | D101: 2
A102: inhe@bbsyd.dk
A103: Skole/hold (18) | B103: Navn | C103: Point | D103: x
A104: Holmeå - 5a - 1 | B104: Daniel M. L. Nielsen | C104: 199 | D104: 7
A105: Brørup Skyttekreds | B105: Thea M. Nielsen | C105: 194 | D105: 5
A106: DGI Sydvest | B106: Mathias M. Mikkelsen | C106: 186 | D106: 4
A107: Ejgil Thuesen | B107: Oliver U. V. Østergaard | C107: 187 | D107: 1
A108: elua_ejgil.thuesen@bbsyd.dk
A109: Skole/hold (19) | B109: Navn | C109: Point | D109: x
A110: Skærbæk Distriks Skole - 5a - 1 | B110: Maja Olesen | C110: 189 | D110: 2
A111: Sparta | B111: Silje Mehlsen | C111: 188 | D111: 3
A112: DGI Sønderjylland | B112: Søren Hedegaard | C112: 190 | D112: 2
A113: Anders Friis | B113: Rasmus Rode | C113: 192 | D113: 4
A114: amafriis@hotmail.com
A115: Skole/hold (20) | B115: Navn | C115: Point | D115: x
A116: Broager Skole - 5b - 1 | B116: Caroline Sørensen | C116: 177 | D116: 1
A117: Broager Skytteforening | B117: Hans N. Tychsen | C117: 188 | D117: 4
A118: DGI Sønderjylland | B118: Anne Fangel Cordes | C118: 189 | D118: 0
A119: Jørn Christensen | B119: Precious Janna Uddin | C119: 192 | D119: 4
A120: majochr@gmail.com
A121: Skole/hold (21) | B121: Navn | C121: Point | D121: x
A122: Brenderup & Omegn Realskole - 5a - 1 | B122: Simon A. Hvergel | C122: 194 | D122: 6
A123: Fj. Harndrup Skytteforening | B123: Amalie K. Lebæk | C123: 194 | D123: 2
A124: DGI Fyn | B124: Gerda M. S. Ladekjær | C124: 192 | D124: 3
A125: Per Christiansen | B125: Victoria H. Christensen | C125: 192 | D125: 4
A126: per.chr.var23.bre@post.tele.dk
A127: Skole/hold (22) | B127: Navn | C127: Point | D127: x
A128: Sletten Skole afd. Otterup - 5a - 1 | B128: Thor Hansen | C128: 193 | D128: 2
A129: Otterup Skytteforening | B129: Kristian Henningsen | C129: 193 | D129: 6
A130: DGI Fyn | B130: Sofie Damsgaard Vogt | C130: 190 | D130: 4
A131: Hans Ole Povelsen | B131: Rasmus Hansen | C131: 182 | D131: 1
A132: povlsen@webspeed.dk
A133: Skole/hold (23) | B133: Navn | C133: Point | D133: x
A134: Sletten Skole afd. Nordvest | B134: Nanna Petersen | C134: 194 | D134: 6
A135: Otterup Skytteforening | B135: Nicklas Bach | C135: 190 | D135: 1
A136: DGI Fyn | B136: Lærke Holm Juhl | C136: 188 | D136: 3
A137: Hans Ole Povelsen | B137: Julie Tolderlund | C137: 188 | D137: 2
A138: povlsen@webspeed.dk
A139: Skole/hold (24) | B139: Navn | C139: Point | D139: x
A140: Susålandets Skole afd. Glumsø - 5a - 1 | B140: Jessica Christiansen | C140: 194 | D140: 6
A141: Glumsøegnens Skytteforening | B141: Aleyna Arslan | C141: 192 | D141: 4
A142: DGI Midt- & Vestsjælland | B142: Phoebe Petersen | C142: 191 | D142: 1
A143: Preben Hansen | B143: Cecilie Buchvardt | C143: 191 | D143: 3
A145: Skole/hold (25) | B145: Navn | C145: Point | D145: x
A146: Jyllinge Skole - 5c - 1 | B146: Jamie Salee-Vangaa | C146: 192 | D146: 4
A147: Gundsølille SG&I | B147: Merle M. S. Sonnenborg | C147: 194 | D147: 4
A148: DGI Midt- & Vestsjælland | B148: Vicki H. Dipo | C148: 196 | D148: 4
A149: Jens Kr. Andreasen | B149: Jessica Sørensen | C149: 190 | D149: 5
A150: jens@skyttegraven.dk
A151: Skole/hold (26) | B151: Navn | C151: Point | D151: x
A152: Baggesen Skole - 5C - 1 | B152: Anders Brogaard | C152: 187 | D152: 3
A153: Korsør Skytteforening | B153: Sascha U. Bross | C153: 200 | D153: 6
A154: DGI Midt- & Vestsjælland | B154: Mikkel Ø. Hansen | C154: 190 | D154: 5
A155: Erik Benée Petersen | B155: Villads A. Thomsen | C155: 193 | D155: 1
A156: erikbenee@post.tele.dk
A157: Skole/hold (27) | B157: Navn | C157: Point | D157: x
A158: Sigerslevøster Privatskole - 5a - 2 | B158: Isak Mirza | C158: 190 | D158: 3
A159: Strø S&G | B159: Laura Thingmand | C159: 190 | D159: 5
A160: DGI Nordsjælland | B160: Johannes Nyengaard | C160: 178 | D160: 1
A161: Andreas Gradischnig | B161: Mikkel Rasmussen | C161: 180 | D161: 2
A162: a-gredischnig@hotmail.com
A163: Skole/hold (28) | B163: Navn | C163: Point | D163: x
A164: Sigerslevøster Privatskole - 5a - 1 | B164: Nicoline Risgaard | C164: 188 | D164: 0
A165: Strø S&G | B165: Sander Oliver Petersen | C165: 184 | D165: 2
A166: DGI Nordsjælland | B166: Regitze Dylmann | C166: 184 | D166: 1
A167: Andreas Gradischnig | B167: Emil Bek Jensen | C167: 183 | D167: 2
A168: a-gredischnig@hotmail.com
A169: Skole/hold (29) | B169: Navn | C169: Point | D169: x
A170: Skole - klasse - hold | B170: Elev 1 | C170: -1
A171: Forening | B171: Elev 2
A172: DGI Storkøbenhavn | B172: Elev 3
A173: Kontaktperson | B173: Elev 4
A174: email
A175: Skole/hold (30) | B175: Navn | C175: Point | D175: x
A176: Skole - klasse - hold | B176: Elev 1 | C176: -2
A177: Forening | B177: Elev 2
A178: DGI Storkøbenhavn | B178: Elev 3
A179: Kontaktperson | B179: Elev 4
A180: email
A181: Skole/hold (31) | B181: Navn | C181: Point | D181: x
A182: Møn Friskole - 5a - 1 | B182: Frederikke Andersen | C182: 190 | D182: 3
A183: Damsholte Skytteforening | B183: Jasmin Burghoff | C183: 182 | D183: 1
A184: DGI Storstrømmen | B184: Silas Petersen | C184: 184 | D184: 1
A185: Claus Frederiksen | B185: Selin Yandim | C185: 193 | D185: 7
A186: cfmp@paradis.dk
A187: Skole/hold (32) | B187: Navn | C187: Point | D187: x
A188: Møn Skole Hjertebjerg - 5a - 1 | B188: Ida Kristiansen | C188: 192 | D188: 4
A189: Stege Ndr. Skytteforening | B189: Theis Lindegaard | C189: 187 | D189: 1
A190: DGI Storstrømmen | B190: Nickolai Thaulov | C190: 186 | D190: 3
A191: Lars Andersen | B191: Magnus Jensen | C191: 188 | D191: 4
A192: stegenordre@live.dk
A193: Skole/hold (33) | B193: Navn | C193: Point | D193: x
A194: Hans Rømer Skole afd. Aaker - 5b - 1 | B194: Victoria Höy | C194: 193 | D194: 3
A195: Åkirkeby Skytteforening | B195: Maja Kock-Jensen | C195: 188 | D195: 4
A196: DGI Bornholm | B196: Nana Strand | C196: 194 | D196: 8
A197: Erik Ager hoey | B197: Mathilde Nielsen | C197: 186 | D197: 3
A198: skydningbornholm@mail.dk
A199: Skole/hold (34) | B199: Navn | C199: Point | D199: x
A200: Svaneke Friskole - 5a - 1 | B200: Jenesa Thapa | C200: 182 | D200: 3
A201: Svaneke Skytteforening | B201: Ellen E. Ibsen | C201: 187 | D201: 1
A202: DGI Bornholm | B202: Aja B. B. Ryan | C202: 183 | D202: 2
... 2 more rows

Sheet test
A1: ='Indtast resultat'!B15&", "&'Indtast resultat'!A15&", "&'Indtast resultat'!A16 -> Isabella Juhler, Nordals Skolen 5B-1, Nordals Skyttekreds
